Workbook

Sheet FT-R Transfers (Freq & Vol)
A1: FT-R Transfer Summary - Frequency
A2: Total | G2: Peace River (PR) | L2: Mainline (ML) | Q2: North & East (NE)
A3: Month | B3: Approved (Manual) | C3: Approved (ATP) | D3: Denied | E3: Cancelled | F3: Total | G3: Approved (Manual) | H3: Approved (ATP) | I3: Denied | J3: Cancelled | K3: Total | L3: Approved (Manual) | M3: Approved (ATP) | N3: Denied | O3: Cancelled | P3: Total | Q3: Approved (Manual) | R3: Approved (ATP) | S3: Denied | T3: Cancelled | U3: Total
A4: 2024-11-22 | B4: =ROUND(SUM(G4,L4,Q4),0) -> 797 | C4: =ROUND(SUM(H4,M4,R4),0) -> 1120 | D4: =ROUND(SUM(I4,N4,S4),0) -> 50 | E4: =ROUND(SUM(J4,O4,T4),0) -> 43 | F4: =ROUND(SUM(K4,P4,U4),0) -> 2010 | G4: 513 | H4: 848 | I4: 50 | J4: =34 -> 34 | K4: =SUM(G4:J4) -> 1445 | L4: 206 | M4: 203 | N4: 0 | O4: 9 | P4: =SUM(L4:O4) -> 418 | Q4: 78 | R4: 69 | S4: 0 | T4: 0 | U4: =SUM(Q4:T4) -> 147
A5: 2024-12-22 | B5: 560 | C5: 1171 | D5: 51 | E5: 4 | F5: 1786 | G5: 327 | H5: 855 | I5: 46 | J5: =4 -> 4 | K5: 1232 | L5: 200 | M5: 237 | N5: 5 | O5: 0 | P5: 442 | Q5: 33 | R5: 79 | S5: 0 | T5: 0 | U5: 112
A6: 2025-01-22 | B6: 811 | C6: 1383 | D6: 106 | E6: 70 | F6: 2370 | G6: 505 | H6: 1069 | I6: 102 | J6: 56 | K6: 1732 | L6: 259 | M6: 227 | N6: 0 | O6: 7 | P6: 493 | Q6: 47 | R6: 87 | S6: 4 | T6: 7 | U6: 145
A7: 2025-02-22 | B7: 775 | C7: 1209 | D7: 113 | E7: 48 | F7: 2145 | G7: 536 | H7: 998 | I7: 91 | J7: 33 | K7: 1658 | L7: 192 | M7: 172 | N7: 22 | O7: 10 | P7: 396 | Q7: 47 | R7: 39 | S7: 0 | T7: 5 | U7: 91
A8: 2025-03-22 | B8: 765 | C8: 1452 | D8: 175 | E8: 32 | F8: 2424 | G8: 513 | H8: 1266 | I8: 170 | J8: 32 | K8: 1981 | L8: 192 | M8: 150 | N8: 3 | O8: 0 | P8: 345 | Q8: 60 | R8: 36 | S8: 2 | T8: 0 | U8: 98
A9: 2025-04-22 | B9: =ROUND(SUM(G9,L9,Q9),0) -> 650 | C9: =ROUND(SUM(H9,M9,R9),0) -> 1248 | D9: 85 | E9: 50 | F9: 2033 | G9: 450 | H9: 1044 | I9: 85 | J9: 46 | K9: =SUM(G9:J9) -> 1625 | L9: 160 | M9: 157 | N9: 0 | O9: 4 | P9: =SUM(L9:O9) -> 321 | Q9: 40 | R9: 47 | S9: 0 | T9: 0 | U9: =SUM(Q9:T9) -> 87
A10: 2025-05-22 | B10: 645 | C10: 1258 | D10: 72 | E10: 68 | F10: 2043 | G10: 515 | H10: 1049 | I10: 71 | J10: 61 | K10: 1696 | L10: 85 | M10: 170 | N10: 1 | O10: 2 | P10: 258 | Q10: 45 | R10: 39 | S10: 0 | T10: 5 | U10: 89
A11: 2025-06-22 | B11: 762 | C11: 1321 | D11: 65 | E11: 32 | F11: 2180 | G11: 499 | H11: 1102 | I11: 58 | J11: 29 | K11: 1688 | L11: 200 | M11: 196 | N11: 7 | O11: 3 | P11: 406 | Q11: 63 | R11: 23 | S11: 0 | T11: 0 | U11: 86
A12: 2025-07-22 | B12: =ROUND(SUM(G12,L12,Q12),0) -> 709 | C12: =ROUND(SUM(H12,M12,R12),0) -> 1189 | D12: =ROUND(SUM(I12,N12,S12),0) -> 85 | E12: =ROUND(SUM(J12,O12,T12),0) -> 36 | F12: =ROUND(SUM(K12,P12,U12),0) -> 2019 | G12: 502 | H12: 965 | I12: 78 | J12: 21 | K12: =SUM(G12:J12) -> 1566 | L12: 172 | M12: 159 | N12: 5 | O12: 15 | P12: =SUM(L12:O12) -> 351 | Q12: 35 | R12: 65 | S12: 2 | T12: 0 | U12: =SUM(Q12:T12) -> 102
A13: 2025-08-22 | B13: 670 | C13: 1160 | D13: 59 | E13: 36 | F13: 1925 | G13: 511 | H13: 937 | I13: 51 | J13: 36 | K13: 1535 | L13: 113 | M13: 190 | N13: 8 | O13: 0 | P13: 311 | Q13: 46 | R13: 33 | S13: 0 | T13: 0 | U13: 79
A14: 2025-09-22 | B14: =ROUND(SUM(G14,L14,Q14),0) -> 745 | C14: =ROUND(SUM(H14,M14,R14),0) -> 1039 | D14: =ROUND(SUM(I14,N14,S14),0) -> 50 | E14: =ROUND(SUM(J14,O14,T14),0) -> 33 | F14: =ROUND(SUM(K14,P14,U14),0) -> 1867 | G14: 473 | H14: 826 | I14: 44 | J14: 29 | K14: =SUM(G14:J14) -> 1372 | L14: 239 | M14: 164 | N14: 6 | O14: 4 | P14: =SUM(L14:O14) -> 413 | Q14: 33 | R14: 49 | S14: 0 | T14: 0 | U14: =SUM(Q14:T14) -> 82
A15: 2025-10-22 | B15: =ROUND(SUM(G15,L15,Q15),0) -> 754 | C15: =ROUND(SUM(H15,M15,R15),0) -> 1137 | D15: =ROUND(SUM(I15,N15,S15),0) -> 65 | E15: =ROUND(SUM(J15,O15,T15),0) -> 46 | F15: =ROUND(SUM(K15,P15,U15),0) -> 2002 | G15: 497 | H15: 943 | I15: 51 | J15: 43 | K15: =SUM(G15:J15) -> 1534 | L15: 217 | M15: 167 | N15: 11 | O15: 3 | P15: =SUM(L15:O15) -> 398 | Q15: 40 | R15: 27 | S15: 3 | T15: 0 | U15: =SUM(Q15:T15) -> 70
A16: 2025-11-22 | B16: =ROUND(SUM(G16,L16,Q16),0) -> 591 | C16: =ROUND(SUM(H16,M16,R16),0) -> 993 | D16: =ROUND(SUM(I16,N16,S16),0) -> 35 | E16: =ROUND(SUM(J16,O16,T16),0) -> 24 | F16: =ROUND(SUM(K16,P16,U16),0) -> 1643 | G16: 405 | H16: 792 | I16: 26 | J16: 14 | K16: =SUM(G16:J16) -> 1237 | L16: 138 | M16: 166 | N16: 9 | O16: 9 | P16: =SUM(L16:O16) -> 322 | Q16: 48 | R16: 35 | S16: 0 | T16: 1 | U16: =SUM(Q16:T16) -> 84
A18: FT-R Transfer Summary - Volume (103m3/d)
A19: Total | G19: Peace River (PR) | L19: Mainline (ML) | Q19: North & East (NE)
A20: Month | B20: Approved (Manual) | C20: Approved (ATP) | D20: Denied | E20: Cancelled | F20: Total | G20: Approved (Manual) | H20: Approved (ATP) | I20: Denied | J20: Cancelled | K20: Total | L20: Approved (Manual) | M20: Approved (ATP) | N20: Denied | O20: Cancelled | P20: Total | Q20: Approved (Manual) | R20: Approved (ATP) | S20: Denied | T20: Cancelled | U20: Total
A21: 2024-11-22 | B21: =SUM(ROUND(G21,0),ROUND(L21,0),ROUND(Q21,0)) -> 71043 | C21: =SUM(ROUND(H21,0),ROUND(M21,0),ROUND(R21,0)) -> 132505 | D21: =SUM(ROUND(I21,0),ROUND(N21,0),ROUND(S21,0)) -> 6457 | E21: =SUM(ROUND(J21,0),ROUND(O21,0),ROUND(T21,0)) -> 7829 | F21: =SUM(B21:E21) -> 217834 | G21: 67529 | H21: 129115 | I21: 6457 | J21: =4984+2672 -> 7656 | K21: =SUM(G21:J21) -> 210757 | L21: 2681 | M21: 2985 | N21: 0 | O21: =173 -> 173 | P21: =SUM(L21:O21) -> 5839 | Q21: 833 | R21: 405 | S21: 0 | T21: 0 | U21: =SUM(Q21:T21) -> 1238
A22: 2024-12-22 | B22: 51855 | C22: 128738 | D22: 6023 | E22: 688 | F22: 187304 | G22: 49947 | H22: 124540 | I22: 5957 | J22: 688 | K22: 181132 | L22: 1599 | M22: 3594 | N22: 66 | O22: 0 | P22: 5259 | Q22: 309 | R22: 604 | S22: 0 | T22: 0 | U22: 913
A23: 2025-01-22 | B23: 102438 | C23: 148036 | D23: 19760 | E23: 17963 | F23: 288197 | G23: 99269 | H23: 143367 | I23: 19734 | J23: =16261+1652 -> 17913 | K23: 280283 | L23: 2596 | M23: 3455 | N23: 0 | O23: 10 | P23: 6061 | Q23: 573 | R23: 1214 | S23: 26 | T23: 40 | U23: 1853
A24: 2025-02-22 | B24: 119572 | C24: 172460 | D24: 14989 | E24: 13881 | F24: 320902 | G24: 112432 | H24: 167169 | I24: 14317 | J24: =10509+3212 -> 13721 | K24: 307639 | L24: 6659 | M24: 4613 | N24: 672 | O24: 103 | P24: 12047 | Q24: 481 | R24: 678 | S24: 0 | T24: 57 | U24: 1216
A25: 2025-03-22 | B25: 69698 | C25: 244083 | D25: 2743 | E25: 12245 | F25: 328769 | G25: 68058 | H25: 239714 | I25: 2711 | J25: =12029+216 -> 12245 | K25: 322728 | L25: 1282 | M25: 3849 | N25: 27 | O25: 0 | P25: =SUM(L25:O25) -> 5158 | Q25: 358 | R25: 520 | S25: 5 | T25: 0 | U25: =SUM(Q25:T25) -> 883
A26: 2025-04-22 | B26: =SUM(ROUND(G26,0),ROUND(L26,0),ROUND(Q26,0)) -> 98756 | C26: 157133 | D26: 9858 | E26: =SUM(ROUND(J26,0),ROUND(O26,0),ROUND(T26,0)) -> 8242 | F26: =SUM(B26:E26) -> 273989 | G26: 96328 | H26: 153212 | I26: 9831 | J26: =7515+641 -> 8156 | K26: =SUM(G26:J26) -> 267527 | L26: 2132 | M26: 3396 | N26: 27 | O26: 86 | P26: =SUM(L26:O26) -> 5641 | Q26: 296 | R26: 525 | S26: 0 | T26: 0 | U26: =SUM(Q26:T26) -> 821
A27: 2025-05-22 | B27: =SUM(ROUND(G27,0),ROUND(L27,0),ROUND(Q27,0)) -> 91186 | C27: 187106 | D27: 7899 | E27: 12794 | F27: 298985 | G27: 90220 | H27: 179523 | I27: 7859 | J27: =7270+5489 -> 12759 | K27: 290361 | L27: 707 | M27: 7173 | N27: 40 | O27: 13 | P27: 7933 | Q27: 259 | R27: 410 | S27: 0 | T27: 22 | U27: 691
A28: 2025-06-22 | B28: 148214 | C28: 235078 | D28: 21482 | E28: 15839 | F28: 420613 | G28: 145424.9 | H28: 229435.5 | I28: 21156.8 | J28: 15830 | K28: 411847.2 | L28: 2558.1 | M28: 5405.2 | N28: 325 | O28: 9 | P28: 8297.3 | Q28: 230.5 | R28: 237.4 | S28: 0 | T28: 0 | U28: 467.9
A29: 2025-07-22 | B29: 198146 | C29: =SUM(ROUND(H29,0),ROUND(M29,0),ROUND(R29,0)) -> 203584 | D29: =SUM(ROUND(I29,0),ROUND(N29,0),ROUND(S29,0)) -> 20293 | E29: =SUM(ROUND(J29,0),ROUND(O29,0),ROUND(T29,0)) -> 7264 | F29: =SUM(B29:E29) -> 429287 | G29: 192297.6 | H29: 198284 | I29: 19665.2 | J29: 7218.6 | K29: =SUM(G29:J29) -> 417465.4 | L29: 5622.8 | M29: 4793.4 | N29: 609.9 | O29: 45 | P29: =SUM(L29:O29) -> 11071.1 | Q29: 224.9 | R29: 507.3 | S29: 17.5 | T29: 0 | U29: =SUM(Q29:T29) -> 749.7
A30: 2025-08-22 | B30: 161511 | C30: 177911 | D30: 8578 | E30: 8027 | F30: 356027 | G30: 157745.3 | H30: 172212 | I30: 8027.7 | J30: 8027 | K30: 346012 | L30: 3475.4 | M30: 5247.9 | N30: 549.8 | O30: 0 | P30: 9273.1 | Q30: 291 | R30: 451.2 | S30: 0 | T30: 0 | U30: 742.2
A31: 2025-09-22 | B31: 101825 | C31: =SUM(ROUND(H31,0),ROUND(M31,0),ROUND(R31,0)) -> 177383 | D31: =SUM(ROUND(I31,0),ROUND(N31,0),ROUND(S31,0)) -> 8505 | E31: =SUM(ROUND(J31,0),ROUND(O31,0),ROUND(T31,0)) -> 10835 | F31: =SUM(B31:E31) -> 298548 | G31: 95467.7 | H31: 172324.1 | I31: 8027.7 | J31: 10192.9 | K31: =SUM(G31:J31) -> 286012.4 | L31: 6125.4 | M31: 4525.3 | N31: 477 | O31: 642 | P31: =SUM(L31:O31) -> 11769.7 | Q31: 232.3 | R31: 534 | S31: 0 | T31: 0 | U31: =SUM(Q31:T31) -> 766.3
A32: 2025-10-22 | B32: 160954 | C32: =SUM(ROUND(H32,0),ROUND(M32,0),ROUND(R32,0)) -> 177013 | D32: =SUM(ROUND(I32,0),ROUND(N32,0),ROUND(S32,0)) -> 19485 | E32: =SUM(ROUND(J32,0),ROUND(O32,0),ROUND(T32,0)) -> 12343 | F32: =SUM(B32:E32) -> 369795 | G32: 155847 | H32: 172329 | I32: 18942 | J32: 12075 | K32: =SUM(G32:J32) -> 359193 | L32: 4910 | M32: 4295 | N32: 524 | O32: 268 | P32: =SUM(L32:O32) -> 9997 | Q32: 197 | R32: 389 | S32: 19 | T32: 0 | U32: =SUM(Q32:T32) -> 605
A33: 2025-11-22 | B33: =SUM(ROUND(G33,0),ROUND(L33,0),ROUND(Q33,0)) -> 95102 | C33: =SUM(ROUND(H33,0),ROUND(M33,0),ROUND(R33,0)) -> 146831 | D33: =SUM(ROUND(I33,0),ROUND(N33,0),ROUND(S33,0)) -> 5355 | E33: =SUM(ROUND(J33,0),ROUND(O33,0),ROUND(T33,0)) -> 1895 | F33: =SUM(B33:E33) -> 249183 | G33: 91055 | H33: 142475 | I33: 5214 | J33: 1657 | K33: =SUM(G33:J33) -> 240401 | L33: 3545 | M33: 4112 | N33: 141 | O33: 217 | P33: =SUM(L33:O33) -> 8015 | Q33: 502 | R33: 244 | S33: 0 | T33: 21 | U33: =SUM(Q33:T33) -> 767
A36: Cross Boundary Transfers
A37: Month | B37: Frequency | C37: Volume (e3m3/d) | D37: Information
A38: 2024-01-01 | B38: 1 | C38: 50 | D38: Requested out and back FT-R transfer volume from PR to ML was cancelled
A39: 2024-02-01 | B39: 1 | C39: 50 | D39: Requested out and back FT-R transfer volume from PR to ML was cancelled
A40: 2024-03-01 | B40: 1 | C40: 50 | D40: Requested out and back FT-R transfer volume from PR to ML was cancelled
A41: 2024-11-01 | B41: N/A | C41: N/A | D41: N/A
A42: 2024-12-01 | B42: N/A | C42: N/A | D42: N/A
A43: 2025-01-01 | B43: N/A | C43: N/A | D43: N/A
A44: 2024-02-01 | B44: N/A | C44: N/A | D44: N/A
A45: 2024-03-01 | B45: N/A | C45: N/A | D45: N/A
A46: 2025-04-01 | B46: N/A | C46: N/A | D46: N/A
A47: 2025-05-01 | B47: N/A | C47: N/A | D47: N/A
A48: 2025-06-01 | B48: 1 | C48: 40.5 | D48: Requested out and back FT-R transfer volume from PR to ML was approved
A49: 2025-07-01 | B49: N/A | C49: N/A | D49: N/A
A50: 2025-08-01 | B50: 2 | C50: 5.5 | D50: Requested one-way FT-R transfer volume from ML to NE was approved
A51: 2025-09-01 | B51: 1 | C51: 35 | D51: Requested one-way FT-R transfer volume from PR to ML was approved
A52: 2025-10-01 | B52: 8 | C52: 156.4 | D52: Requested one-way FT-R transfer volumes from PR to ML and NE were approved
A53: 2025-11-01 | B53: N/A | C53: N/A | D53: N/A
A55: Notes:
A56: 1. Values represent the number of transfer requests processed in the specified month, regardless of effective date
A57: 2. Includes all "out and back" and "one-way" transfers
A58: 3. Out and back transfer requests are tallied as a single transaction
A59: 4. Transfers to storage are not included in totals
A60: 5. Transfers that cross a Delivery Design Area boundary are tallied in the area where the "To" location is situated
A61: 6. Cancelled transfer requests are initiated by the requester (customer, marketer etc.)
A62: 7. ATP is the acronym for Automated Transfer Process, requests that meet certain criteria may be approved automatically
A63: 8. Delivery Design Area boundaries are illustrated in the Design Methodology document on Customer Express (see NGTL/Regulatory/Facilities)
A64: http://www.tccustomerexpress.com/docs/ab_regulatory_facilities/Facilities%20Design%20Methodology%20Document%20-%20Revision%20May%2031,%202018_Oct%204.pdf
U68: 1

Sheet FT-D Transfers (Frequency)
A2: FT-D Transfer Summary - Frequency
A3: Total | F3: NW Alberta and NE BC | J3: NE Alberta | N3: Edmonton and Area | R3: SW Alberta | V3: SE Alberta
A4: Month | B4: Approved | C4: Denied | D4: Cancelled | E4: Total | F4: Approved | G4: Denied | H4: Cancelled | I4: Total | J4: Approved | K4: Denied | L4: Cancelled | M4: Total | N4: Approved | O4: Denied | P4: Cancelled | Q4: Total | R4: Approved | S4: Denied | T4: Cancelled | U4: Total | V4: Approved | W4: Denied | X4: Cancelled | Y4: Total
A5: 2024-11-22 | B5: =SUM(F5,J5,N5,R5,V5) -> 76 | C5: =SUM(G5,K5,O5,S5,W5) -> 3 | D5: =SUM(H5,L5,P5,T5,X5) -> 0 | E5: =SUM(B5:D5) -> 79 | F5: =SUM(F22,F39,F56,F79) -> 0 | G5: =SUM(G22,G79) -> 0 | H5: =SUM(H22,H39,H56,H79) -> 0 | I5: =SUM(F5:H5) -> 0 | J5: =SUM(J22,J39,J56,J79) -> 2 | K5: =SUM(K22,K39,K56,K79) -> 2 | L5: =SUM(L22,L39,L56,L79) -> 0 | M5: =SUM(J5:L5) -> 4 | N5: =SUM(N22,N39,N56,N79) -> 1 | O5: =SUM(O22,O39,O56,O79) -> 0 | P5: =SUM(P22,P39,P56,P79) -> 0 | Q5: =SUM(N5:P5) -> 1 | R5: =SUM(R22,R39,R56,R79) -> 1 | S5: =SUM(S22,S39,S56,S79) -> 0 | T5: =SUM(T22,T39,T56,T79) -> 0 | U5: =SUM(R5:T5) -> 1 | V5: =SUM(V22,V39,V56,B96,C96,I96,J96) -> 72 | W5: =SUM(W22,W39,W56,W79,D96,K96) -> 1 | X5: =SUM(X22,X39,X56,X79,E96,L96) -> 0 | Y5: =SUM(V5:X5) -> 73
A6: 2024-12-22 | B6: 77 | C6: 0 | D6: 1 | E6: 78 | F6: =SUM(F23,F40,F57,F80) -> 0 | G6: =SUM(G23,G80) -> 0 | H6: =SUM(H23,H40,H57,H80) -> 0 | I6: 0 | J6: =SUM(J23,J40,J57,J80) -> 2 | K6: =SUM(K23,K40,K57,K80) -> 0 | L6: =SUM(L23,L40,L57,L80) -> 0 | M6: 2 | N6: =SUM(N23,N40,N57,N80) -> 2 | O6: =SUM(O23,O40,O57,O80) -> 0 | P6: =SUM(P23,P40,P57,P80) -> 0 | Q6: 2 | R6: =SUM(R23,R40,R57,R80) -> 8 | S6: =SUM(S23,S40,S57,S80) -> 0 | T6: =SUM(T23,T40,T57,T80) -> 0 | U6: 8 | V6: =SUM(V23,V40,V57,B97,C97,I97,J97) -> 65 | W6: =SUM(W23,W40,W57,W80,D97,K97) -> 0 | X6: =SUM(X23,X40,X57,X80,E97,L97) -> 1 | Y6: 66
A7: 2025-01-22 | B7: =SUM(F7,J7,N7,R7,V7) -> 99 | C7: 3 | D7: 4 | E7: 106 | F7: =SUM(F24,F41,F58,F81) -> 0 | G7: =SUM(G24,G81) -> 0 | H7: =SUM(H24,H41,H58,H81) -> 0 | I7: 0 | J7: =SUM(J24,J41,J58,J81) -> 2 | K7: =SUM(K24,K41,K58,K81) -> 0 | L7: =SUM(L24,L41,L58,L81) -> 0 | M7: 2 | N7: =SUM(N24,N41,N58,N81) -> 3 | O7: =SUM(O24,O41,O58,O81) -> 0 | P7: =SUM(P24,P41,P58,P81) -> 0 | Q7: 3 | R7: =SUM(R24,R41,R58,R81) -> 8 | S7: =SUM(S24,S41,S58,S81) -> 1 | T7: =SUM(T24,T41,T58,T81) -> 2 | U7: 11 | V7: =SUM(V24,V41,V58,B98,C98,I98,J98) -> 86 | W7: =SUM(W24,W41,W58,W81,D98,K98) -> 2 | X7: =SUM(X24,X41,X58,X81,E98,L98) -> 2 | Y7: 90
A8: 2025-02-22 | B8: 89 | C8: 1 | D8: 1 | E8: 91 | F8: =SUM(F25,F42,F59,F82) -> 0 | G8: =SUM(G25,G82) -> 0 | H8: =SUM(H25,H42,H59,H82) -> 0 | I8: 0 | J8: =SUM(J25,J42,J59,J82) -> 2 | K8: =SUM(K25,K42,K59,K82) -> 0 | L8: =SUM(L25,L42,L59,L82) -> 1 | M8: 3 | N8: =SUM(N25,N42,N59,N82) -> 4 | O8: =SUM(O25,O42,O59,O82) -> 0 | P8: =SUM(P25,P42,P59,P82) -> 0 | Q8: 4 | R8: =SUM(R25,R42,R59,R82) -> 5 | S8: =SUM(S25,S42,S59,S82) -> 1 | T8: =SUM(T25,T42,T59,T82) -> 0 | U8: 6 | V8: =SUM(V25,V42,V59,B99,C99,I99,J99) -> 78 | W8: =SUM(W25,W42,W59,W82,D99,K99) -> 0 | X8: =SUM(X25,X42,X59,X82,E99,L99) -> 0 | Y8: 78
A9: 2025-03-22 | B9: 84 | C9: 0 | D9: 0 | E9: 84 | F9: =SUM(F26,F43,F60,F83) -> 0 | G9: =SUM(G26,G83) -> 0 | H9: =SUM(H26,H43,H60,H83) -> 0 | I9: 0 | J9: =SUM(J26,J43,J60,J83) -> 2 | K9: =SUM(K26,K43,K60,K83) -> 0 | L9: =SUM(L26,L43,L60,L83) -> 0 | M9: 2 | N9: =SUM(N26,N43,N60,N83) -> 1 | O9: =SUM(O26,O43,O60,O83) -> 0 | P9: =SUM(P26,P43,P60,P83) -> 0 | Q9: 1 | R9: =SUM(R26,R43,R60,R83) -> 5 | S9: =SUM(S26,S43,S60,S83) -> 0 | T9: =SUM(T26,T43,T60,T83) -> 0 | U9: 5 | V9: =SUM(V26,V43,V60,B100,C100,I100,J100) -> 76 | W9: =SUM(W26,W43,W60,W83,D100,K100) -> 0 | X9: =SUM(X26,X43,X60,X83,E100,L100) -> 0 | Y9: 76
A10: 2025-04-22 | B10: 71 | C10: =SUM(G10,K10,O10,S10,W10) -> 0 | D10: =SUM(H10,L10,P10,T10,X10) -> 0 | E10: =SUM(B10:D10) -> 71 | F10: =SUM(F27,F44,F61,F84) -> 0 | G10: =SUM(G27,G84) -> 0 | H10: =SUM(H27,H44,H61,H84) -> 0 | I10: 0 | J10: =SUM(J27,J44,J61,J84) -> 3 | K10: =SUM(K27,K44,K61,K84) -> 0 | L10: =SUM(L27,L44,L61,L84) -> 0 | M10: 3 | N10: =SUM(N27,N44,N61,N84) -> 1 | O10: =SUM(O27,O44,O61,O84) -> 0 | P10: =SUM(P27,P44,P61,P84) -> 0 | Q10: 1 | R10: =SUM(R27,R44,R61,R84) -> 4 | S10: =SUM(S27,S44,S61,S84) -> 0 | T10: =SUM(T27,T44,T61,T84) -> 0 | U10: 4 | V10: =SUM(V27,V44,V61,B101,C101,I101,J101) -> 63 | W10: =SUM(W27,W44,W61,W84,D101,K101) -> 0 | X10: =SUM(X27,X44,X61,X84,E101,L101) -> 0 | Y10: 63
A11: 2025-05-22 | B11: 119 | C11: 0 | D11: 0 | E11: 119 | F11: =SUM(F28,F45,F62,F85) -> 0 | G11: =SUM(G28,G85) -> 0 | H11: =SUM(H28,H45,H62,H85) -> 0 | I11: 0 | J11: =SUM(J28,J45,J62,J85) -> 2 | K11: =SUM(K28,K45,K62,K85) -> 0 | L11: =SUM(L28,L45,L62,L85) -> 0 | M11: 2 | N11: =SUM(N28,N45,N62,N85) -> 1 | O11: =SUM(O28,O45,O62,O85) -> 0 | P11: =SUM(P28,P45,P62,P85) -> 0 | Q11: 1 | R11: =SUM(R28,R45,R62,R85) -> 2 | S11: =SUM(S28,S45,S62,S85) -> 0 | T11: =SUM(T28,T45,T62,T85) -> 0 | U11: 2 | V11: =SUM(V28,V45,V62,B102,C102,I102,J102) -> 114 | W11: =SUM(W28,W45,W62,W85,D102,K102) -> 0 | X11: =SUM(X28,X45,X62,X85,E102,L102) -> 0 | Y11: 114
A12: 2025-06-22 | B12: 270 | C12: 0 | D12: 10 | E12: =SUM(B12:D12) -> 280 | F12: =SUM(F29,F46,F63,F86) -> 0 | G12: =SUM(G29,G86) -> 0 | H12: =SUM(H29,H46,H63,H86) -> 0 | I12: 0 | J12: =SUM(J29,J46,J63,J86) -> 3 | K12: =SUM(K29,K46,K63,K86) -> 0 | L12: =SUM(L29,L46,L63,L86) -> 5 | M12: 8 | N12: =SUM(N29,N46,N63,N86) -> 20 | O12: =SUM(O29,O46,O63,O86) -> 0 | P12: =SUM(P29,P46,P63,P86) -> 2 | Q12: 22 | R12: =SUM(R29,R46,R63,R86) -> 0 | S12: =SUM(S29,S46,S63,S86) -> 0 | T12: =SUM(T29,T46,T63,T86) -> 0 | U12: 0 | V12: =SUM(V29,V46,V63,B103,C103,I103,J103) -> 247 | W12: =SUM(W29,W46,W63,W86,D103,K103) -> 0 | X12: =SUM(X29,X46,X63,X86,E103,L103) -> 3 | Y12: 250
A13: 2025-07-22 | B13: 205 | C13: =SUM(G13,K13,O13,S13,W13) -> 0 | D13: =SUM(H13,L13,P13,T13,X13) -> 4 | E13: =SUM(B13:D13) -> 209 | F13: =SUM(F30,F47,F64,F87) -> 0 | G13: =SUM(G30,G87) -> 0 | H13: =SUM(H30,H47,H64,H87) -> 0 | I13: 0 | J13: =SUM(J30,J47,J64,J87) -> 1 | K13: =SUM(K30,K47,K64,K87) -> 0 | L13: =SUM(L30,L47,L64,L87) -> 0 | M13: 1 | N13: =SUM(N30,N47,N64,N87) -> 1 | O13: =SUM(O30,O47,O64,O87) -> 0 | P13: =SUM(P30,P47,P64,P87) -> 0 | Q13: 1 | R13: =SUM(R30,R47,R64,R87) -> 0 | S13: =SUM(S30,S47,S64,S87) -> 0 | T13: =SUM(T30,T47,T64,T87) -> 0 | U13: 0 | V13: =SUM(V30,V47,V64,B104,C104,I104,J104) -> 203 | W13: =SUM(W30,W47,W64,W87,D104,K104) -> 0 | X13: =SUM(X30,X47,X64,X87,E104,L104) -> 4 | Y13: 207
A14: 2025-08-22 | B14: 140 | C14: =SUM(G14,K14,O14,S14,W14) -> 0 | D14: =SUM(H14,L14,P14,T14,X14) -> 1 | E14: =SUM(B14:D14) -> 141 | F14: =SUM(F31,F48,F65,F88) -> 0 | G14: =SUM(G31,G88) -> 0 | H14: =SUM(H31,H48,H65,H88) -> 0 | I14: 0 | J14: =SUM(J31,J48,J65,J88) -> 2 | K14: =SUM(K31,K48,K65,K88) -> 0 | L14: =SUM(L31,L48,L65,L88) -> 0 | M14: 2 | N14: =SUM(N31,N48,N65,N88) -> 0 | O14: =SUM(O31,O48,O65,O88) -> 0 | P14: =SUM(P31,P48,P65,P88) -> 0 | Q14: 0 | R14: =SUM(R31,R48,R65,R88) -> 3 | S14: =SUM(S31,S48,S65,S88) -> 0 | T14: =SUM(T31,T48,T65,T88) -> 1 | U14: 4 | V14: =SUM(V31,V48,V65,B105,C105,I105,J105) -> 135 | W14: =SUM(W31,W48,W65,W88,D105,K105) -> 0 | X14: =SUM(X31,X48,X65,X88,E105,L105) -> 0 | Y14: 135
A15: 2025-09-22 | B15: =SUM(F15,J15,N15,R15,V15) -> 104 | C15: =SUM(G15,K15,O15,S15,W15) -> 0 | D15: =SUM(H15,L15,P15,T15,X15) -> 8 | E15: =SUM(B15:D15) -> 112 | F15: =SUM(F32,F49,F66,F89) -> 0 | G15: =SUM(G32,G89) -> 0 | H15: =SUM(H32,H49,H66,H89) -> 0 | I15: 0 | J15: =SUM(J32,J49,J66,J89) -> 8 | K15: =SUM(K32,K49,K66,K89) -> 0 | L15: =SUM(L32,L49,L66,L89) -> 0 | M15: 8 | N15: =SUM(N32,N49,N66,N89) -> 7 | O15: =SUM(O32,O49,O66,O89) -> 0 | P15: =SUM(P32,P49,P66,P89) -> 3 | Q15: 10 | R15: =SUM(R32,R49,R66,R89) -> 0 | S15: =SUM(S32,S49,S66,S89) -> 0 | T15: =SUM(T32,T49,T66,T89) -> 0 | U15: 0 | V15: =SUM(V32,V49,V66,B106,C106,I106,J106) -> 89 | W15: =SUM(W32,W49,W66,W89,D106,K106) -> 0 | X15: =SUM(X32,X49,X66,X89,E106,L106) -> 5 | Y15: 94
A16: 2025-10-22 | B16: =SUM(F16,J16,N16,R16,V16) -> 116 | C16: =SUM(G16,K16,O16,S16,W16) -> 21 | D16: =SUM(H16,L16,P16,T16,X16) -> 7 | E16: =SUM(B16:D16) -> 144 | F16: =SUM(F33,F50,F67,F90) -> 0 | G16: =SUM(G33,G90) -> 0 | H16: =SUM(H33,H50,H67,H90) -> 0 | I16: =SUM(F16:H16) -> 0 | J16: =SUM(J33,J50,J67,J90) -> 10 | K16: =SUM(K33,K50,K67,K90) -> 19 | L16: =SUM(L33,L50,L67,L90) -> 5 | M16: =SUM(J16:L16) -> 34 | N16: =SUM(N33,N50,N67,N90) -> 3 | O16: =SUM(O33,O50,O67,O90) -> 0 | P16: =SUM(P33,P50,P67,P90) -> 0 | Q16: =SUM(N16:P16) -> 3 | R16: =SUM(R33,R50,R67,R90) -> 3 | S16: =SUM(S33,S50,S67,S90) -> 2 | T16: =SUM(T33,T50,T67,T90) -> 1 | U16: =SUM(R16:T16) -> 6 | V16: =SUM(V33,V50,V67,B107,C107,I107,J107) -> 100 | W16: =SUM(W33,W50,W67,W90,D107,K107) -> 0 | X16: =SUM(X33,X50,X67,X90,E107,L107) -> 1 | Y16: =SUM(V16:X16) -> 101
A17: 2025-11-22 | B17: =SUM(F17,J17,N17,R17,V17) -> 115 | C17: =SUM(G17,K17,O17,S17,W17) -> 2 | D17: =SUM(H17,L17,P17,T17,X17) -> 2 | E17: =SUM(B17:D17) -> 119 | F17: =SUM(F34,F51,F68,F91) -> 0 | G17: =SUM(G34,G91) -> 0 | H17: =SUM(H34,H51,H68,H91) -> 0 | I17: =SUM(F17:H17) -> 0 | J17: =SUM(J34,J51,J68,J91) -> 2 | K17: =SUM(K34,K51,K68,K91) -> 0 | L17: =SUM(L34,L51,L68,L91) -> 0 | M17: =SUM(J17:L17) -> 2 | N17: =SUM(N34,N51,N68,N91) -> 1 | O17: =SUM(O34,O51,O68,O91) -> 0 | P17: =SUM(P34,P51,P68,P91) -> 0 | Q17: =SUM(N17:P17) -> 1 | R17: =SUM(R34,R51,R68,R91) -> 3 | S17: =SUM(S34,S51,S68,S91) -> 1 | T17: =SUM(T34,T51,T68,T91) -> 1 | U17: =SUM(R17:T17) -> 5 | V17: =SUM(V34,V51,V68,B108,C108,I108,J108) -> 109 | W17: =SUM(W34,W51,W68,W91,D108,K108) -> 1 | X17: =SUM(X34,X51,X68,X91,E108,L108) -> 1 | Y17: =SUM(V17:X17) -> 111
A19: FT-D2 to FT-D2 Transfer Summary
A20: Total | F20: NW Alberta and NE BC | J20: NE Alberta | N20: Edmonton and Area | R20: SW Alberta | V20: SE Alberta
A21: Month | B21: Approved | C21: Denied | D21: Cancelled | E21: Total | F21: Approved | G21: Denied | H21: Cancelled | I21: Total | J21: Approved | K21: Denied | L21: Cancelled | M21: Total | N21: Approved | O21: Denied | P21: Cancelled | Q21: Total | R21: Approved | S21: Denied | T21: Cancelled | U21: Total | V21: Approved | W21: Denied | X21: Cancelled | Y21: Total
A22: 2024-11-22 | B22: =SUM(F22,J22,N22,R22,V22) -> 9 | C22: =SUM(G22,K22,O22,S22,W22) -> 3 | D22: =SUM(H22,L22,P22,T22,X22) -> 0 | E22: =SUM(B22:D22) -> 12 | F22: 0 | G22: 0 | H22: 0 | I22: =SUM(F22:H22) -> 0 | J22: 2 | K22: 2 | L22: 0 | M22: =SUM(J22:L22) -> 4 | N22: 1 | O22: 0 | P22: 0 | Q22: =SUM(N22:P22) -> 1 | R22: 0 | S22: 0 | T22: 0 | U22: =SUM(R22:T22) -> 0 | V22: 6 | W22: 1 | X22: 0 | Y22: =SUM(V22:X22) -> 7
A23: 2024-12-22 | B23: 8 | C23: 0 | D23: 0 | E23: 8 | F23: 0 | G23: 0 | H23: 0 | I23: 0 | J23: 2 | K23: 0 | L23: 0 | M23: 2 | N23: 2 | O23: 0 | P23: 0 | Q23: 2 | R23: 0 | S23: 0 | T23: 0 | U23: 0 | V23: 4 | W23: 0 | X23: 0 | Y23: 4
A24: 2025-01-22 | B24: 7 | C24: 0 | D24: 0 | E24: 7 | F24: 0 | G24: 0 | H24: 0 | I24: 0 | J24: 2 | K24: 0 | L24: 0 | M24: 2 | N24: 2 | O24: 0 | P24: 0 | Q24: 2 | R24: 0 | S24: 0 | T24: 0 | U24: 0 | V24: 3 | W24: 0 | X24: 0 | Y24: 3
A25: 2025-02-22 | B25: 11 | C25: 1 | D25: 1 | E25: 13 | F25: 0 | G25: 0 | H25: 0 | I25: 0 | J25: 2 | K25: 0 | L25: 1 | M25: 3 | N25: 4 | O25: 0 | P25: 0 | Q25: 4 | R25: 2 | S25: 1 | T25: 0 | U25: 3 | V25: 3 | W25: 0 | X25: 0 | Y25: 3
A26: 2025-03-22 | B26: 7 | C26: 0 | D26: 0 | E26: 7 | F26: 0 | G26: 0 | H26: 0 | I26: 0 | J26: 2 | K26: 0 | L26: 0 | M26: 2 | N26: 1 | O26: 0 | P26: 0 | Q26: 1 | R26: 0 | S26: 0 | T26: 0 | U26: 0 | V26: 4 | W26: 0 | X26: 0 | Y26: 4
A27: 2025-04-22 | B27: =SUM(F27,J27,N27,R27,V27) -> 5 | C27: =SUM(G27,K27,O27,S27,W27) -> 0 | D27: =SUM(H27,L27,P27,T27,X27) -> 0 | E27: =SUM(B27:D27) -> 5 | F27: 0 | G27: 0 | H27: 0 | I27: =SUM(F27:H27) -> 0 | J27: 3 | K27: 0 | L27: 0 | M27: =SUM(J27:L27) -> 3 | N27: 1 | O27: 0 | P27: 0 | Q27: =SUM(N27:P27) -> 1 | R27: 0 | S27: 0 | T27: 0 | U27: =SUM(R27:T27) -> 0 | V27: 1 | W27: 0 | X27: 0 | Y27: =SUM(V27:X27) -> 1
A28: 2025-05-22 | B28: 11 | C28: 0 | D28: 0 | E28: 11 | F28: 0 | G28: 0 | H28: 0 | I28: 0 | J28: 2 | K28: 0 | L28: 0 | M28: 2 | N28: 1 | O28: 0 | P28: 0 | Q28: 1 | R28: 2 | S28: 0 | T28: 0 | U28: 2 | V28: 6 | W28: 0 | X28: 0 | Y28: 6
A29: 2025-06-22 | B29: 36 | C29: 0 | D29: 7 | E29: 43 | F29: 0 | G29: 0 | H29: 0 | I29: 0 | J29: 3 | K29: 0 | L29: 5 | M29: 8 | N29: 20 | O29: 0 | P29: 2 | Q29: 22 | R29: 0 | S29: 0 | T29: 0 | U29: 0 | V29: 13 | W29: 0 | X29: 0 | Y29: 13
A30: 2025-07-22 | B30: =SUM(F30,J30,N30,R30,V30) -> 9 | C30: =SUM(G30,K30,O30,S30,W30) -> 0 | D30: =SUM(H30,L30,P30,T30,X30) -> 0 | E30: =SUM(B30:D30) -> 9 | F30: 0 | G30: 0 | H30: 0 | I30: =SUM(F30:H30) -> 0 | J30: 1 | K30: 0 | L30: 0 | M30: =SUM(J30:L30) -> 1 | N30: 1 | O30: 0 | P30: 0 | Q30: =SUM(N30:P30) -> 1 | R30: 0 | S30: 0 | T30: 0 | U30: =SUM(R30:T30) -> 0 | V30: 7 | W30: 0 | X30: 0 | Y30: =SUM(V30:X30) -> 7
A31: 2025-08-22 | B31: =SUM(F31,J31,N31,R31,V31) -> 5 | C31: =SUM(G31,K31,O31,S31,W31) -> 0 | D31: =SUM(H31,L31,P31,T31,X31) -> 0 | E31: =SUM(B31:D31) -> 5 | F31: 0 | G31: 0 | H31: 0 | I31: =SUM(F31:H31) -> 0 | J31: 2 | K31: 0 | L31: 0 | M31: =SUM(J31:L31) -> 2 | N31: 0 | O31: 0 | P31: 0 | Q31: =SUM(N31:P31) -> 0 | R31: 0 | S31: 0 | T31: 0 | U31: =SUM(R31:T31) -> 0 | V31: 3 | W31: 0 | X31: 0 | Y31: =SUM(V31:X31) -> 3
A32: 2025-09-22 | B32: =SUM(F32,J32,N32,R32,V32) -> 24 | C32: =SUM(G32,K32,O32,S32,W32) -> 0 | D32: =SUM(H32,L32,P32,T32,X32) -> 8 | E32: =SUM(B32:D32) -> 32 | F32: 0 | G32: 0 | H32: 0 | I32: =SUM(F32:H32) -> 0 | J32: 8 | K32: 0 | L32: 0 | M32: =SUM(J32:L32) -> 8 | N32: 7 | O32: 0 | P32: 3 | Q32: =SUM(N32:P32) -> 10 | R32: 0 | S32: 0 | T32: 0 | U32: =SUM(R32:T32) -> 0 | V32: 9 | W32: 0 | X32: 5 | Y32: =SUM(V32:X32) -> 14
A33: 2025-10-22 | B33: =SUM(F33,J33,N33,R33,V33) -> 17 | C33: =SUM(G33,K33,O33,S33,W33) -> 19 | D33: =SUM(H33,L33,P33,T33,X33) -> 6 | E33: =SUM(B33:D33) -> 42 | F33: 0 | G33: 0 | H33: 0 | I33: =SUM(F33:H33) -> 0 | J33: 10 | K33: 19 | L33: 5 | M33: =SUM(J33:L33) -> 34 | N33: 3 | O33: 0 | P33: 0 | Q33: =SUM(N33:P33) -> 3 | R33: 0 | S33: 0 | T33: 0 | U33: =SUM(R33:T33) -> 0 | V33: 4 | W33: 0 | X33: 1 | Y33: =SUM(V33:X33) -> 5
A34: 2025-11-22 | B34: =SUM(F34,J34,N34,R34,V34) -> 8 | C34: =SUM(G34,K34,O34,S34,W34) -> 1 | D34: =SUM(H34,L34,P34,T34,X34) -> 2 | E34: =SUM(B34:D34) -> 11 | F34: 0 | G34: 0 | H34: 0 | I34: =SUM(F34:H34) -> 0 | J34: 2 | K34: 0 | L34: 0 | M34: =SUM(J34:L34) -> 2 | N34: 1 | O34: 0 | P34: 0 | Q34: =SUM(N34:P34) -> 1 | R34: 0 | S34: 0 | T34: 1 | U34: =SUM(R34:T34) -> 1 | V34: 5 | W34: 1 | X34: 1 | Y34: =SUM(V34:X34) -> 7
A36: FT-D3 to FT-D3 Transfer Summary
A37: Total | F37: NW Alberta and NE BC | J37: NE Alberta | N37: Edmonton and Area | R37: SW Alberta | V37: SE Alberta
A38: Month | B38: Approved | C38: Denied | D38: Cancelled | E38: Total | F38: Approved | G38: Denied | H38: Cancelled | I38: Total | J38: Approved | K38: Denied | L38: Cancelled | M38: Total | N38: Approved | O38: Denied | P38: Cancelled | Q38: Total | R38: Approved | S38: Denied | T38: Cancelled | U38: Total | V38: Approved | W38: Denied | X38: Cancelled | Y38: Total
A39: 2024-11-22 | B39: =SUM(F39,J39,N39,R39,V39) -> 0 | C39: =SUM(G39,K39,O39,S39,W39) -> 0 | D39: =SUM(H39,L39,P39,T39,X39) -> 0 | E39: =SUM(B39:D39) -> 0 | F39: 0 | G39: 0 | H39: 0 | I39: =SUM(F39:H39) -> 0 | J39: 0 | K39: 0 | L39: 0 | M39: =SUM(J39:L39) -> 0 | N39: 0 | O39: 0 | P39: 0 | Q39: =SUM(N39:P39) -> 0 | R39: 0 | S39: 0 | T39: 0 | U39: =SUM(R39:T39) -> 0 | V39: 0 | W39: 0 | X39: 0 | Y39: =SUM(V39:X39) -> 0
A40: 2024-12-22 | B40: 0 | C40: 0 | D40: 0 | E40: 0 | F40: 0 | G40: 0 | H40: 0 | I40: 0 | J40: 0 | K40: 0 | L40: 0 | M40: 0 | N40: 0 | O40: 0 | P40: 0 | Q40: 0 | R40: 0 | S40: 0 | T40: 0 | U40: 0 | V40: 0 | W40: 0 | X40: 0 | Y40: 0
A41: 2025-01-22 | B41: 1 | C41: 0 | D41: 0 | E41: 1 | F41: 0 | G41: 0 | H41: 0 | I41: 0 | J41: 0 | K41: 0 | L41: 0 | M41: 0 | N41: 1 | O41: 0 | P41: 0 | Q41: 1 | R41: 0 | S41: 0 | T41: 0 | U41: 0 | V41: 0 | W41: 0 | X41: 0 | Y41: 0
A42: 2025-02-22 | B42: 0 | C42: 0 | D42: 0 | E42: 0 | F42: 0 | G42: 0 | H42: 0 | I42: 0 | J42: 0 | K42: 0 | L42: 0 | M42: 0 | N42: 0 | O42: 0 | P42: 0 | Q42: 0 | R42: 0 | S42: 0 | T42: 0 | U42: 0 | V42: 0 | W42: 0 | X42: 0 | Y42: 0
A43: 2025-03-22 | B43: 0 | C43: 0 | D43: 0 | E43: 0 | F43: 0 | G43: 0 | H43: 0 | I43: 0 | J43: 0 | K43: 0 | L43: 0 | M43: 0 | N43: 0 | O43: 0 | P43: 0 | Q43: 0 | R43: 0 | S43: 0 | T43: 0 | U43: 0 | V43: 0 | W43: 0 | X43: 0 | Y43: 0
A44: 2025-04-22 | B44: =SUM(F44,J44,N44,R44,V44) -> 0 | C44: =SUM(G44,K44,O44,S44,W44) -> 0 | D44: =SUM(H44,L44,P44,T44,X44) -> 0 | E44: =SUM(B44:D44) -> 0 | F44: 0 | G44: 0 | H44: 0 | I44: =SUM(F44:H44) -> 0 | J44: 0 | K44: 0 | L44: 0 | M44: =SUM(J44:L44) -> 0 | N44: 0 | O44: 0 | P44: 0 | Q44: =SUM(N44:P44) -> 0 | R44: 0 | S44: 0 | T44: 0 | U44: =SUM(R44:T44) -> 0 | V44: 0 | W44: 0 | X44: 0 | Y44: =SUM(V44:X44) -> 0
A45: 2025-05-22 | B45: 0 | C45: 0 | D45: 0 | E45: 0 | F45: 0 | G45: 0 | H45: 0 | I45: 0 | J45: 0 | K45: 0 | L45: 0 | M45: 0 | N45: 0 | O45: 0 | P45: 0 | Q45: 0 | R45: 0 | S45: 0 | T45: 0 | U45: 0 | V45: 0 | W45: 0 | X45: 0 | Y45: 0
A46: 2025-06-22 | B46: 0 | C46: 0 | D46: 0 | E46: 0 | F46: 0 | G46: 0 | H46: 0 | I46: 0 | J46: 0 | K46: 0 | L46: 0 | M46: 0 | N46: 0 | O46: 0 | P46: 0 | Q46: 0 | R46: 0 | S46: 0 | T46: 0 | U46: 0 | V46: 0 | W46: 0 | X46: 0 | Y46: 0
A47: 2025-07-22 | B47: =SUM(F47,J47,N47,R47,V47) -> 0 | C47: =SUM(G47,K47,O47,S47,W47) -> 0 | D47: =SUM(H47,L47,P47,T47,X47) -> 0 | E47: =SUM(B47:D47) -> 0 | F47: 0 | G47: 0 | H47: 0 | I47: =SUM(F47:H47) -> 0 | J47: 0 | K47: 0 | L47: 0 | M47: =SUM(J47:L47) -> 0 | N47: 0 | O47: 0 | P47: 0 | Q47: =SUM(N47:P47) -> 0 | R47: 0 | S47: 0 | T47: 0 | U47: =SUM(R47:T47) -> 0 | V47: 0 | W47: 0 | X47: 0 | Y47: =SUM(V47:X47) -> 0
A48: 2025-08-22 | B48: =SUM(F48,J48,N48,R48,V48) -> 0 | C48: =SUM(G48,K48,O48,S48,W48) -> 0 | D48: =SUM(H48,L48,P48,T48,X48) -> 0 | E48: =SUM(B48:D48) -> 0 | F48: 0 | G48: 0 | H48: 0 | I48: =SUM(F48:H48) -> 0 | J48: 0 | K48: 0 | L48: 0 | M48: =SUM(J48:L48) -> 0 | N48: 0 | O48: 0 | P48: 0 | Q48: =SUM(N48:P48) -> 0 | R48: 0 | S48: 0 | T48: 0 | U48: =SUM(R48:T48) -> 0 | V48: 0 | W48: 0 | X48: 0 | Y48: =SUM(V48:X48) -> 0
A49: 2025-09-22 | B49: =SUM(F49,J49,N49,R49,V49) -> 0 | C49: =SUM(G49,K49,O49,S49,W49) -> 0 | D49: =SUM(H49,L49,P49,T49,X49) -> 0 | E49: =SUM(B49:D49) -> 0 | F49: 0 | G49: 0 | H49: 0 | I49: =SUM(F49:H49) -> 0 | J49: 0 | K49: 0 | L49: 0 | M49: =SUM(J49:L49) -> 0 | N49: 0 | O49: 0 | P49: 0 | Q49: =SUM(N49:P49) -> 0 | R49: 0 | S49: 0 | T49: 0 | U49: =SUM(R49:T49) -> 0 | V49: 0 | W49: 0 | X49: 0 | Y49: =SUM(V49:X49) -> 0
A50: 2025-10-22 | B50: =SUM(F50,J50,N50,R50,V50) -> 0 | C50: =SUM(G50,K50,O50,S50,W50) -> 0 | D50: =SUM(H50,L50,P50,T50,X50) -> 0 | E50: =SUM(B50:D50) -> 0 | F50: 0 | G50: 0 | H50: 0 | I50: =SUM(F50:H50) -> 0 | J50: 0 | K50: 0 | L50: 0 | M50: =SUM(J50:L50) -> 0 | N50: 0 | O50: 0 | P50: 0 | Q50: =SUM(N50:P50) -> 0 | R50: 0 | S50: 0 | T50: 0 | U50: =SUM(R50:T50) -> 0 | V50: 0 | W50: 0 | X50: 0 | Y50: =SUM(V50:X50) -> 0
A51: 2025-11-22 | B51: =SUM(F51,J51,N51,R51,V51) -> 0 | C51: =SUM(G51,K51,O51,S51,W51) -> 0 | D51: =SUM(H51,L51,P51,T51,X51) -> 0 | E51: =SUM(B51:D51) -> 0 | F51: 0 | G51: 0 | H51: 0 | I51: =SUM(F51:H51) -> 0 | J51: 0 | K51: 0 | L51: 0 | M51: =SUM(J51:L51) -> 0 | N51: 0 | O51: 0 | P51: 0 | Q51: =SUM(N51:P51) -> 0 | R51: 0 | S51: 0 | T51: 0 | U51: =SUM(R51:T51) -> 0 | V51: 0 | W51: 0 | X51: 0 | Y51: =SUM(V51:X51) -> 0
A53: FT-D1 to FT-D2 Transfer Summary
A54: Total | F54: NW Alberta and NE BC | J54: NE Alberta | N54: Edmonton and Area | R54: SW Alberta | V54: SE Alberta
A55: Month | B55: Approved | C55: Denied | D55: Cancelled | E55: Total | F55: Approved | G55: Denied | H55: Cancelled | I55: Total | J55: Approved | K55: Denied | L55: Cancelled | M55: Total | N55: Approved | O55: Denied | P55: Cancelled | Q55: Total | R55: Approved | S55: Denied | T55: Cancelled | U55: Total | V55: Approved | W55: Denied | X55: Cancelled | Y55: Total
A56: 2024-11-22 | B56: =SUM(F56,J56,N56,R56,V56) -> 0 | C56: =SUM(G56,K56,O56,S56,W56) -> 0 | D56: =SUM(H56,L56,P56,T56,X56) -> 0 | E56: =SUM(B56:D56) -> 0 | F56: 0 | G56: 0 | H56: 0 | I56: 0 | J56: 0 | K56: 0 | L56: 0 | M56: 0 | N56: 0 | O56: 0 | P56: 0 | Q56: 0 | R56: 0 | S56: 0 | T56: 0 | U56: 0 | V56: 0 | W56: 0 | X56: 0 | Y56: =SUM(X56,W56,V56) -> 0
A57: 2024-12-22 | B57: 0 | C57: 0 | D57: 0 | E57: 0 | F57: 0 | G57: 0 | H57: 0 | I57: 0 | J57: 0 | K57: 0 | L57: 0 | M57: 0 | N57: 0 | O57: 0 | P57: 0 | Q57: 0 | R57: 0 | S57: 0 | T57: 0 | U57: 0 | V57: 0 | W57: 0 | X57: 0 | Y57: 0
A58: 2025-01-22 | B58: 0 | C58: 0 | D58: 0 | E58: 0 | F58: 0 | G58: 0 | H58: 0 | I58: 0 | J58: 0 | K58: 0 | L58: 0 | M58: 0 | N58: 0 | O58: 0 | P58: 0 | Q58: 0 | R58: 0 | S58: 0 | T58: 0 | U58: 0 | V58: 0 | W58: 0 | X58: 0 | Y58: 0
A59: 2025-02-22 | B59: 0 | C59: 0 | D59: 0 | E59: 0 | F59: 0 | G59: 0 | H59: 0 | I59: 0 | J59: 0 | K59: 0 | L59: 0 | M59: 0 | N59: 0 | O59: 0 | P59: 0 | Q59: 0 | R59: 0 | S59: 0 | T59: 0 | U59: 0 | V59: 0 | W59: 0 | X59: 0 | Y59: 0
A60: 2025-03-22 | B60: 0 | C60: 0 | D60: 0 | E60: 0 | F60: 0 | G60: 0 | H60: 0 | I60: 0 | J60: 0 | K60: 0 | L60: 0 | M60: 0 | N60: 0 | O60: 0 | P60: 0 | Q60: 0 | R60: 0 | S60: 0 | T60: 0 | U60: 0 | V60: 0 | W60: 0 | X60: 0 | Y60: 0
A61: 2025-04-22 | B61: =SUM(F61,J61,N61,R61,V61) -> 0 | C61: =SUM(G61,K61,O61,S61,W61) -> 0 | D61: =SUM(H61,L61,P61,T61,X61) -> 0 | E61: =SUM(B61:D61) -> 0 | F61: 0 | G61: 0 | H61: 0 | I61: 0 | J61: 0 | K61: 0 | L61: 0 | M61: 0 | N61: 0 | O61: 0 | P61: 0 | Q61: 0 | R61: 0 | S61: 0 | T61: 0 | U61: 0 | V61: 0 | W61: 0 | X61: 0 | Y61: =SUM(X61,W61,V61) -> 0
A62: 2025-05-22 | B62: 0 | C62: 0 | D62: 0 | E62: 0 | F62: 0 | G62: 0 | H62: 0 | I62: 0 | J62: 0 | K62: 0 | L62: 0 | M62: 0 | N62: 0 | O62: 0 | P62: 0 | Q62: 0 | R62: 0 | S62: 0 | T62: 0 | U62: 0 | V62: 0 | W62: 0 | X62: 0 | Y62: 0
A63: 2025-06-22 | B63: 9 | C63: 0 | D63: 1 | E63: 10 | F63: 0 | G63: 0 | H63: 0 | I63: 0 | J63: 0 | K63: 0 | L63: 0 | M63: 0 | N63: 0 | O63: 0 | P63: 0 | Q63: 0 | R63: 0 | S63: 0 | T63: 0 | U63: 0 | V63: 9 | W63: 0 | X63: 1 | Y63: 10
A64: 2025-07-22 | B64: =SUM(F64,J64,N64,R64,V64) -> 12 | C64: =SUM(G64,K64,O64,S64,W64) -> 0 | D64: =SUM(H64,L64,P64,T64,X64) -> 0 | E64: =SUM(B64:D64) -> 12 | F64: 0 | G64: 0 | H64: 0 | I64: 0 | J64: 0 | K64: 0 | L64: 0 | M64: 0 | N64: 0 | O64: 0 | P64: 0 | Q64: 0 | R64: 0 | S64: 0 | T64: 0 | U64: 0 | V64: 12 | W64: 0 | X64: 0 | Y64: =SUM(X64,W64,V64) -> 12
A65: 2025-08-22 | B65: =SUM(F65,J65,N65,R65,V65) -> 0 | C65: =SUM(G65,K65,O65,S65,W65) -> 0 | D65: =SUM(H65,L65,P65,T65,X65) -> 0 | E65: =SUM(B65:D65) -> 0 | F65: 0 | G65: 0 | H65: 0 | I65: 0 | J65: 0 | K65: 0 | L65: 0 | M65: 0 | N65: 0 | O65: 0 | P65: 0 | Q65: 0 | R65: 0 | S65: 0 | T65: 0 | U65: 0 | V65: 0 | W65: 0 | X65: 0 | Y65: =SUM(X65,W65,V65) -> 0
A66: 2025-09-22 | B66: =SUM(F66,J66,N66,R66,V66) -> 0 | C66: =SUM(G66,K66,O66,S66,W66) -> 0 | D66: =SUM(H66,L66,P66,T66,X66) -> 0 | E66: =SUM(B66:D66) -> 0 | F66: 0 | G66: 0 | H66: 0 | I66: 0 | J66: 0 | K66: 0 | L66: 0 | M66: 0 | N66: 0 | O66: 0 | P66: 0 | Q66: 0 | R66: 0 | S66: 0 | T66: 0 | U66: 0 | V66: 0 | W66: 0 | X66: 0 | Y66: =SUM(X66,W66,V66) -> 0
A67: 2025-10-22 | B67: =SUM(F67,J67,N67,R67,V67) -> 0 | C67: =SUM(G67,K67,O67,S67,W67) -> 0 | D67: =SUM(H67,L67,P67,T67,X67) -> 0 | E67: =SUM(B67:D67) -> 0 | F67: 0 | G67: 0 | H67: 0 | I67: 0 | J67: 0 | K67: 0 | L67: 0 | M67: 0 | N67: 0 | O67: 0 | P67: 0 | Q67: 0 | R67: 0 | S67: 0 | T67: 0 | U67: 0 | V67: 0 | W67: 0 | X67: 0 | Y67: =SUM(X67,W67,V67) -> 0
A68: 2025-11-22 | B68: =SUM(F68,J68,N68,R68,V68) -> 0 | C68: =SUM(G68,K68,O68,S68,W68) -> 0 | D68: =SUM(H68,L68,P68,T68,X68) -> 0 | E68: =SUM(B68:D68) -> 0 | F68: 0 | G68: 0 | H68: 0 | I68: 0 | J68: 0 | K68: 0 | L68: 0 | M68: 0 | N68: 0 | O68: 0 | P68: 0 | Q68: 0 | R68: 0 | S68: 0 | T68: 0 | U68: 0 | V68: 0 | W68: 0 | X68: 0 | Y68: =SUM(X68,W68,V68) -> 0
A76: FT-D2 to FT-D1 Transfer Summary
A77: Total | F77: NW Alberta and NE BC | J77: NE Alberta | N77: Edmonton and Area | R77: SW Alberta | V77: SE Alberta
A78: Month | B78: Approved | C78: Denied | D78: Cancelled | E78: Total | F78: Approved | G78: Denied | H78: Cancelled | I78: Total | J78: Approved | K78: Denied | L78: Cancelled | M78: Total | N78: Approved | O78: Denied | P78: Cancelled | Q78: Total | R78: Approved | S78: Denied | T78: Cancelled | U78: Total | V78: Approved | W78: Denied | X78: Cancelled | Y78: Total
A79: 2024-11-22 | B79: =SUM(F79,J79,N79,R79,V79) -> 5 | C79: =SUM(G79,K79,O79,S79,W79) -> 0 | D79: =SUM(H79,L79,P79,T79,X79) -> 0 | E79: =SUM(B79:D79) -> 5 | F79: 0 | G79: 0 | H79: 0 | I79: 0 | J79: 0 | K79: 0 | L79: 0 | M79: 0 | N79: 0 | O79: 0 | P79: 0 | Q79: 0 | R79: 1 | S79: 0 | T79: 0 | U79: =SUM(R79:T79) -> 1 | V79: 4 | W79: 0 | X79: 0 | Y79: =SUM(V79:X79) -> 4
A80: 2024-12-22 | B80: 11 | C80: 0 | D80: 0 | E80: 11 | F80: 0 | G80: 0 | H80: 0 | I80: 0 | J80: 0 | K80: 0 | L80: 0 | M80: 0 | N80: 0 | O80: 0 | P80: 0 | Q80: 0 | R80: 8 | S80: 0 | T80: 0 | U80: 8 | V80: 3 | W80: 0 | X80: 0 | Y80: 3
A81: 2025-01-22 | B81: 8 | C81: 3 | D81: 2 | E81: 13 | F81: 0 | G81: 0 | H81: 0 | I81: 0 | J81: 0 | K81: 0 | L81: 0 | M81: 0 | N81: 0 | O81: 0 | P81: 0 | Q81: 0 | R81: 8 | S81: 1 | T81: 2 | U81: 11 | V81: 0 | W81: 2 | X81: 0 | Y81: 2
A82: 2025-02-22 | B82: 3 | C82: 0 | D82: 0 | E82: 3 | F82: 0 | G82: 0 | H82: 0 | I82: 0 | J82: 0 | K82: 0 | L82: 0 | M82: 0 | N82: 0 | O82: 0 | P82: 0 | Q82: 0 | R82: 3 | S82: 0 | T82: 0 | U82: 3 | V82: 0 | W82: 0 | X82: 0 | Y82: 0
A83: 2025-03-22 | B83: 5 | C83: 0 | D83: 0 | E83: 5 | F83: 0 | G83: 0 | H83: 0 | I83: 0 | J83: 0 | K83: 0 | L83: 0 | M83: 0 | N83: 0 | O83: 0 | P83: 0 | Q83: 0 | R83: 5 | S83: 0 | T83: 0 | U83: 5 | V83: 0 | W83: 0 | X83: 0 | Y83: 0
A84: 2025-04-22 | B84: =SUM(F84,J84,N84,R84,V84) -> 4 | C84: =SUM(G84,K84,O84,S84,W84) -> 0 | D84: =SUM(H84,L84,P84,T84,X84) -> 0 | E84: =SUM(B84:D84) -> 4 | F84: 0 | G84: 0 | H84: 0 | I84: 0 | J84: 0 | K84: 0 | L84: 0 | M84: 0 | N84: 0 | O84: 0 | P84: 0 | Q84: 0 | R84: 4 | S84: 0 | T84: 0 | U84: =SUM(R84:T84) -> 4 | V84: 0 | W84: 0 | X84: 0 | Y84: =SUM(V84:X84) -> 0
A85: 2025-05-22 | B85: 0 | C85: 0 | D85: 0 | E85: 0 | F85: 0 | G85: 0 | H85: 0 | I85: 0 | J85: 0 | K85: 0 | L85: 0 | M85: 0 | N85: 0 | O85: 0 | P85: 0 | Q85: 0 | R85: 0 | S85: 0 | T85: 0 | U85: =SUM(R85:T85) -> 0 | V85: 0 | W85: 0 | X85: 0 | Y85: 0
A86: 2025-06-22 | B86: 0 | C86: 0 | D86: 0 | E86: 0 | F86: 0 | G86: 0 | H86: 0 | I86: 0 | J86: 0 | K86: 0 | L86: 0 | M86: 0 | N86: 0 | O86: 0 | P86: 0 | Q86: 0 | R86: 0 | S86: 0 | T86: 0 | U86: 0 | V86: 0 | W86: 0 | X86: 0 | Y86: 0
A87: 2025-07-22 | B87: =SUM(F87,J87,N87,R87,V87) -> 0 | C87: =SUM(G87,K87,O87,S87,W87) -> 0 | D87: =SUM(H87,L87,P87,T87,X87) -> 0 | E87: =SUM(B87:D87) -> 0 | F87: 0 | G87: 0 | H87: 0 | I87: 0 | J87: 0 | K87: 0 | L87: 0 | M87: 0 | N87: 0 | O87: 0 | P87: 0 | Q87: 0 | R87: 0 | S87: 0 | T87: 0 | U87: 0 | V87: 0 | W87: 0 | X87: 0 | Y87: =SUM(V87:X87) -> 0
A88: 2025-08-22 | B88: =SUM(F88,J88,N88,R88,V88) -> 3 | C88: =SUM(G88,K88,O88,S88,W88) -> 0 | D88: =SUM(H88,L88,P88,T88,X88) -> 1 | E88: =SUM(B88:D88) -> 4 | F88: 0 | G88: 0 | H88: 0 | I88: 0 | J88: 0 | K88: 0 | L88: 0 | M88: 0 | N88: 0 | O88: 0 | P88: 0 | Q88: 0 | R88: 3 | S88: 0 | T88: 1 | U88: =SUM(R88:T88) -> 4 | V88: 0 | W88: 0 | X88: 0 | Y88: =SUM(V88:X88) -> 0
A89: 2025-09-22 | B89: 0 | C89: =SUM(G89,K89,O89,S89,W89) -> 0 | D89: 0 | E89: =SUM(B89:D89) -> 0 | F89: 0 | G89: 0 | H89: 0 | I89: 0 | J89: 0 | K89: 0 | L89: 0 | M89: 0 | N89: 0 | O89: 0 | P89: 0 | Q89: 0 | R89: 0 | S89: 0 | T89: 0 | U89: =SUM(R89:T89) -> 0 | V89: 0 | W89: 0 | X89: 0 | Y89: =SUM(V89:X89) -> 0
A90: 2025-10-22 | B90: 0 | C90: =SUM(G90,K90,O90,S90,W90) -> 2 | D90: 0 | E90: =SUM(B90:D90) -> 2 | F90: 0 | G90: 0 | H90: 0 | I90: 0 | J90: 0 | K90: 0 | L90: 0 | M90: 0 | N90: 0 | O90: 0 | P90: 0 | Q90: 0 | R90: 3 | S90: 2 | T90: 1 | U90: =SUM(R90:T90) -> 6 | V90: 0 | W90: 0 | X90: 0 | Y90: =SUM(V90:X90) -> 0
A91: 2025-11-22 | B91: 0 | C91: =SUM(G91,K91,O91,S91,W91) -> 1 | D91: 0 | E91: =SUM(B91:D91) -> 1 | F91: 0 | G91: 0 | H91: 0 | I91: 0 | J91: 0 | K91: 0 | L91: 0 | M91: 0 | N91: 0 | O91: 0 | P91: 0 | Q91: 0 | R91: 3 | S91: 1 | T91: 0 | U91: =SUM(R91:T91) -> 4 | V91: 0 | W91: 0 | X91: 0 | Y91: =SUM(V91:X91) -> 0
A93: FT-D1 to FT-D1 Transfer Summary
A94: Empress to McNeill FT-D1 | H94: McNeill to Empress FT-D1
A95: Month | B95: Approved (Manual) | C95: Approved (ATP) | D95: Denied | E95: Cancelled | F95: Total | H95: Month | I95: Approved (Manual) | J95: Approved (ATP) | K95: Denied | L95: Cancelled | M95: Total
A96: 2024-11-22 | B96: 13 | C96: 3 | D96: 0 | E96: 0 | F96: =SUM(B96:E96) -> 16 | H96: 2024-11-22 | I96: 14 | J96: 36 | K96: 0 | L96: 0 | M96: =SUM(I96:L96) -> 50
A97: 2024-12-22 | B97: 9 | C97: 7 | D97: 0 | E97: 0 | F97: 16 | H97: 2024-12-22 | I97: 18 | J97: 27 | K97: 0 | L97: 1 | M97: 46
A98: 2025-01-22 | B98: 7 | C98: 38 | D98: 0 | E98: 2 | F98: 47 | H98: 2025-01-22 | I98: 12 | J98: 26 | K98: 0 | L98: 0 | M98: 38
A99: 2025-02-22 | B99: 0 | C99: 56 | D99: 0 | E99: 0 | F99: 56 | H99: 2025-02-22 | I99: 0 | J99: 19 | K99: 0 | L99: 0 | M99: 19
A100: 2025-03-22 | B100: 1 | C100: 36 | D100: 0 | E100: 0 | F100: 37 | H100: 2025-03-22 | I100: 2 | J100: 33 | K100: 0 | L100: 0 | M100: 35
A101: 2025-04-22 | B101: 0 | C101: 30 | D101: 0 | E101: 0 | F101: =SUM(B101:E101) -> 30 | H101: 2025-04-22 | I101: 0 | J101: 32 | K101: 0 | L101: 0 | M101: =SUM(I101:L101) -> 32
A102: 2025-05-22 | B102: 3 | C102: 67 | D102: 0 | E102: 0 | F102: 70 | H102: 2025-05-22 | I102: 2 | J102: 36 | K102: 0 | L102: 0 | M102: 38
A103: 2025-06-22 | B103: 16 | C103: 121 | D103: 0 | E103: 2 | F103: 139 | H103: 2025-06-22 | I103: 17 | J103: 71 | K103: 0 | L103: 0 | M103: 88
A104: 2025-07-22 | B104: 17 | C104: 103 | D104: 0 | E104: 4 | F104: =SUM(B104:E104) -> 124 | H104: 2025-07-22 | I104: 13 | J104: 51 | K104: 0 | L104: 0 | M104: =SUM(I104:L104) -> 64
A105: 2025-08-22 | B105: 0 | C105: 107 | D105: 0 | E105: 0 | F105: =SUM(B105:E105) -> 107 | H105: 2025-08-22 | I105: 0 | J105: 25 | K105: 0 | L105: 0 | M105: =SUM(I105:L105) -> 25
A106: 2025-09-22 | B106: 0 | C106: 48 | D106: 0 | E106: 0 | F106: =SUM(B106:E106) -> 48 | H106: 2025-09-22 | I106: 29 | J106: 3 | K106: 0 | L106: 0 | M106: =SUM(I106:L106) -> 32
A107: 2025-10-22 | B107: 2 | C107: 55 | D107: 0 | E107: 0 | F107: =SUM(B107:E107) -> 57 | H107: 2025-10-22 | I107: 26 | J107: 13 | K107: 0 | L107: 0 | M107: =SUM(I107:L107) -> 39
A108: 2025-11-22 | B108: 4 | C108: 40 | D108: 0 | E108: 0 | F108: =SUM(B108:E108) -> 44 | H108: 2025-11-22 | I108: 6 | J108: 54 | K108: 0 | L108: 0 | M108: =SUM(I108:L108) -> 60
J109: .
A110: Cross Boundary Transfers
A111: Month | B111: Frequency | C111: Information
A112: 2023-06-01 | B112: N/A | C112: N/A
A113: 2024-11-01 | B113: N/A | C113: N/A
A114: 2024-12-01 | B114: N/A | C114: N/A
A115: 2025-01-01 | B115: N/A | C115: N/A
A116: 2025-02-01 | B116: N/A | C116: N/A
A117: 2025-03-01 | B117: N/A | C117: N/A
A118: 2025-04-01 | B118: N/A | C118: N/A
A119: 2025-05-01 | B119: N/A | C119: N/A
A120: 2025-06-01 | B120: N/A | C120: N/A
A121: 2025-07-01 | B121: N/A | C121: N/A
A122: 2025-08-01 | B122: N/A | C122: N/A
A123: 2025-09-01 | B123: N/A | C123: N/A
A124: 2025-10-01 | B124: N/A | C124: N/A
A125: 2025-11-01 | B125: N/A | C125: N/A
A127: Notes:
A128: 1. Values represent the number of transfer requests processed in the specified month, regardless of effective date
A129: 2. Includes all "out and back" and "one-way" transfers
A130: 3. Out and back transfer requests are tallied as a single transaction
A131: 4. Transfers to storage are not included in totals
A132: 5. Transfers that cross a Delivery Design Area boundary are tallied in the area where the "To" location is situated
A133: 6. Cancelled transfer requests are initiated by the requester (customer, marketer etc.)
A134: 7. ATP is the acronym for Automated Transfer Process, requests that meet certain criteria may be approved automatically
A135: 8. Delivery Design Area boundaries are illustrated in the Design Methodology document on Customer Express (see NGTL/Regulatory/Facilities)
A136: http://www.tccustomerexpress.com/docs/ab_regulatory_facilities/Facilities%20Design%20Methodology%20Document%20-%20Revision%20May%2031,%202018_Oct%204.pdf

Sheet FT-D Transfers (Volume)
A1: FT-D Transfer Summary - Volume (GJ/d)
A2: Total | F2: NW Alberta and NE BC | J2: NE Alberta | N2: Edmonton and Area | R2: SW Alberta | V2: SE Alberta
A3: Month | B3: Approved | C3: Denied | D3: Cancelled | E3: Total | F3: Approved | G3: Denied | H3: Cancelled | I3: Total | J3: Approved | K3: Denied | L3: Cancelled | M3: Total | N3: Approved | O3: Denied | P3: Cancelled | Q3: Total | R3: Approved | S3: Denied | T3: Cancelled | U3: Total | V3: Approved | W3: Denied | X3: Cancelled | Y3: Total
A4: 2024-11-22 | B4: =SUM(F4,J4,N4,R4,V4) -> 1370525 | C4: =SUM(G4,K4,O4,S4,W4) -> 25 | D4: =SUM(H4,L4,P4,T4,X4) -> 0 | E4: =SUM(B4:D4) -> 1370550 | F4: =SUM(F21,F38,F55,F81) -> 0 | G4: =SUM(G21,G38,G55,G81) -> 0 | H4: =SUM(H21,H38,H55,H81) -> 0 | I4: =SUM(F4:H4) -> 0 | J4: =SUM(J21,J38,J55,J81) -> 10000 | K4: =SUM(K21,K38,K55,K81) -> 0 | L4: =SUM(L21,L38,L55,L81) -> 0 | M4: =SUM(J4:L4) -> 10000 | N4: =SUM(N21,N38,N55,N81) -> 6000 | O4: =SUM(O21,O40,O55,O81) -> 25 | P4: =SUM(P21,P38,P55,P81) -> 0 | Q4: =SUM(N4:P4) -> 6025 | R4: =SUM(R21,R38,R55,R81) -> 10000 | S4: =SUM(S21,S38,S55,S81) -> 0 | T4: =SUM(T21,T38,T55,T81) -> 0 | U4: =SUM(R4:T4) -> 10000 | V4: =SUM(V21,V38,V55,V81,B99,C99,I99,J99) -> 1344525 | W4: =SUM(W21,W38,W55,W81,D99,K99) -> 0 | X4: =SUM(X21,X38,X55,X81,E99,L99) -> 0 | Y4: =SUM(V4:X4) -> 1344525
A5: 2024-12-22 | B5: 1662771 | C5: 0 | D5: 0 | E5: 1662771 | F5: =SUM(F22,F39,F56,F82) -> 0 | G5: =SUM(G22,G39,G56,G82) -> 0 | H5: =SUM(H22,H39,H56,H82) -> 0 | I5: 0 | J5: =SUM(J22,J39,J56,J82) -> 12500 | K5: =SUM(K22,K39,K56,K82) -> 0 | L5: =SUM(L22,L39,L56,L82) -> 0 | M5: 12500 | N5: =SUM(N22,N39,N56,N82) -> 9000 | O5: =SUM(O22,O41,O56,O82) -> 0 | P5: =SUM(P22,P39,P56,P82) -> 0 | Q5: 9000 | R5: =SUM(R22,R39,R56,R82) -> 10000 | S5: =SUM(S22,S39,S56,S82) -> 0 | T5: =SUM(T22,T39,T56,T82) -> 0 | U5: 10000 | V5: =SUM(V22,V39,V56,V82,B100,C100,I100,J100) -> 1631271 | W5: =SUM(W22,W39,W56,W82,D100,K100) -> 0 | X5: =SUM(X22,X39,X56,X82,E100,L100) -> 0 | Y5: 1631271
A6: 2025-01-22 | B6: 1902338 | C6: =SUM(G6,K6,O6,S6,W6) -> 0 | D6: 14489 | E6: 1916827 | F6: =SUM(F23,F40,F57,F83) -> 0 | G6: =SUM(G23,G40,G57,G83) -> 0 | H6: =SUM(H23,H40,H57,H83) -> 0 | I6: 0 | J6: =SUM(J23,J40,J57,J83) -> 12500 | K6: =SUM(K23,K40,K57,K83) -> 0 | L6: =SUM(L23,L40,L57,L83) -> 0 | M6: 12500 | N6: =SUM(N23,N40,N57,N83) -> 8200 | O6: =SUM(O23,O42,O57,O83) -> 0 | P6: =SUM(P23,P40,P57,P83) -> 0 | Q6: 8200 | R6: =SUM(R23,R40,R57,R83) -> 10000 | S6: =SUM(S23,S40,S57,S83) -> 0 | T6: =SUM(T23,T40,T57,T83) -> 0 | U6: 10000 | V6: =SUM(V23,V40,V57,V83,B101,C101,I101,J101) -> 1871638 | W6: =SUM(W23,W40,W57,W83,D101,K101) -> 0 | X6: =SUM(X23,X40,X57,X83,E101,L101) -> 14489 | Y6: 1886127
A7: 2025-02-22 | B7: 1914762 | C7: 0 | D7: 17489 | E7: 1932251 | F7: =SUM(F24,F41,F58,F84) -> 0 | G7: =SUM(G24,G41,G58,G84) -> 0 | H7: =SUM(H24,H41,H58,H84) -> 0 | I7: 0 | J7: =SUM(J24,J41,J58,J84) -> 9500 | K7: =SUM(K24,K41,K58,K84) -> 0 | L7: =SUM(L24,L41,L58,L84) -> 3000 | M7: 12500 | N7: =SUM(N24,N41,N58,N84) -> 7000 | O7: =SUM(O24,O43,O58,O84) -> 0 | P7: =SUM(P24,P41,P58,P84) -> 0 | Q7: 7000 | R7: =SUM(R24,R41,R58,R84) -> 8174 | S7: =SUM(S24,S41,S58,S84) -> 0 | T7: =SUM(T24,T41,T58,T84) -> 0 | U7: 8174 | V7: =SUM(V24,V41,V58,V84,B102,C102,I102,J102) -> 1890088 | W7: =SUM(W24,W41,W58,W84,D102,K102) -> 0 | X7: =SUM(X24,X41,X58,X84,E102,L102) -> 14489 | Y7: 1904577
A8: 2025-03-22 | B8: 1503891 | C8: 0 | D8: 0 | E8: 1503891 | F8: =SUM(F25,F42,F59,F85) -> 0 | G8: =SUM(G25,G42,G59,G85) -> 0 | H8: =SUM(H25,H42,H59,H85) -> 0 | I8: 0 | J8: =SUM(J25,J42,J59,J85) -> 12500 | K8: =SUM(K25,K42,K59,K85) -> 0 | L8: =SUM(L25,L42,L59,L85) -> 0 | M8: 12500 | N8: =SUM(N25,N42,N59,N85) -> 3000 | O8: =SUM(O25,O44,O59,O85) -> 0 | P8: =SUM(P25,P42,P59,P85) -> 0 | Q8: 3000 | R8: =SUM(R25,R42,R59,R85) -> 17874 | S8: =SUM(S25,S42,S59,S85) -> 0 | T8: =SUM(T25,T42,T59,T85) -> 0 | U8: 17874 | V8: =SUM(V25,V42,V59,V85,B103,C103,I103,J103) -> 1470517 | W8: =SUM(W25,W42,W59,W85,D103,K103) -> 0 | X8: =SUM(X25,X42,X59,X85,E103,L103) -> 0 | Y8: 1470517
A9: 2025-04-22 | B9: =SUM(F9,J9,N9,R9,V9) -> 1402106 | C9: 0 | D9: 10900 | E9: =SUM(B9:D9) -> 1413006 | F9: =SUM(F26,F43,F60,F86) -> 0 | G9: =SUM(G26,G43,G60,G86) -> 0 | H9: =SUM(H26,H43,H60,H86) -> 0 | I9: 0 | J9: =SUM(J26,J43,J60,J86) -> 45000 | K9: =SUM(K26,K43,K60,K86) -> 0 | L9: =SUM(L26,L43,L60,L86) -> 0 | M9: 45000 | N9: =SUM(N26,N43,N60,N86) -> 4000 | O9: =SUM(O26,O45,O60,O86) -> 0 | P9: =SUM(P26,P43,P60,P86) -> 0 | Q9: 4000 | R9: =SUM(R26,R43,R60,R86) -> 20500 | S9: =SUM(S26,S43,S60,S86) -> 0 | T9: =SUM(T26,T43,T60,T86) -> 0 | U9: 20500 | V9: =SUM(V26,V43,V60,V86,B104,C104,I104,J104) -> 1332606 | W9: =SUM(W26,W43,W60,W86,D104,K104) -> 0 | X9: =SUM(X26,X43,X60,X86,E104,L104) -> 10900 | Y9: 1343506
A10: 2025-05-22 | B10: =SUM(F10,J10,N10,R10,V10) -> 3265730 | C10: 0 | D10: 0 | E10: 3265730 | F10: =SUM(F27,F44,F61,F87) -> 0 | G10: =SUM(G27,G44,G61,G87) -> 0 | H10: =SUM(H27,H44,H61,H87) -> 0 | I10: 0 | J10: =SUM(J27,J44,J61,J87) -> 12500 | K10: =SUM(K27,K44,K61,K87) -> 0 | L10: =SUM(L27,L44,L61,L87) -> 0 | M10: 12500 | N10: =SUM(N27,N44,N61,N87) -> 3000 | O10: =SUM(O27,O46,O61,O87) -> 0 | P10: =SUM(P27,P44,P61,P87) -> 0 | Q10: 3000 | R10: =SUM(R27,R44,R61,R87) -> 2000 | S10: =SUM(S27,S44,S61,S87) -> 0 | T10: =SUM(T27,T44,T61,T87) -> 0 | U10: 2000 | V10: =SUM(V27,V44,V61,V87,B105,C105,I105,J105) -> 3248230 | W10: =SUM(W27,W44,W61,W87,D105,K105) -> 0 | X10: =SUM(X27,X44,X61,X87,E105,L105) -> 0 | Y10: 3248230
A11: 2025-06-22 | B11: =SUM(F11,J11,N11,R11,V11) -> 7394311 | C11: =SUM(G11,K11,O11,S11,W11) -> 0 | D11: 142063 | E11: 7536374 | F11: =SUM(F28,F45,F62,F88) -> 0 | G11: =SUM(G28,G45,G62,G88) -> 0 | H11: =SUM(H28,H45,H62,H88) -> 0 | I11: 0 | J11: =SUM(J28,J45,J62,J88) -> 24000 | K11: =SUM(K28,K45,K62,K88) -> 0 | L11: =SUM(L28,L45,L62,L88) -> 30000 | M11: 54000 | N11: =SUM(N28,N45,N62,N88) -> 196200 | O11: =SUM(O28,O47,O62,O88) -> 0 | P11: =SUM(P28,P45,P62,P88) -> 17200 | Q11: 213400 | R11: =SUM(R28,R45,R62,R88) -> 0 | S11: =SUM(S28,S45,S62,S88) -> 0 | T11: =SUM(T28,T45,T62,T88) -> 0 | U11: 0 | V11: =SUM(V28,V45,V62,V88,B106,C106,I106,J106) -> 7174111 | W11: =SUM(W28,W45,W62,W88,D106,K106) -> 0 | X11: =SUM(X28,X45,X62,X88,E106,L106) -> 94863 | Y11: 7268974
A12: 2025-07-22 | B12: =SUM(F12,J12,N12,R12,V12) -> 5501141 | C12: 0 | D12: 61390 | E12: =SUM(B12:D12) -> 5562531 | F12: =SUM(F29,F46,F63,F89) -> 0 | G12: =SUM(G29,G46,G63,G89) -> 0 | H12: =SUM(H29,H46,H63,H89) -> 0 | I12: 0 | J12: =SUM(J29,J46,J63,J89) -> 7500 | K12: =SUM(K29,K46,K63,K89) -> 0 | L12: =SUM(L29,L46,L63,L89) -> 0 | M12: 7500 | N12: =SUM(N29,N46,N63,N89) -> 23000 | O12: =SUM(O29,O48,O63,O89) -> 0 | P12: =SUM(P29,P46,P63,P89) -> 0 | Q12: 23000 | R12: =SUM(R29,R46,R63,R89) -> 0 | S12: =SUM(S29,S46,S63,S89) -> 0 | T12: =SUM(T29,T46,T63,T89) -> 0 | U12: 0 | V12: =SUM(V29,V46,V63,V89,B107,C107,I107,J107) -> 5470641 | W12: =SUM(W29,W46,W63,W89,D107,K107) -> 0 | X12: =SUM(X29,X46,X63,X89,E107,L107) -> 61390 | Y12: 5532031
A13: 2025-08-22 | B13: =SUM(F13,J13,N13,R13,V13) -> 3292501 | C13: =SUM(G13,K13,O13,S13,W13) -> 0 | D13: =SUM(H13,L13,P13,T13,X13) -> 300 | E13: =SUM(B13:D13) -> 3292801 | F13: =SUM(F30,F47,F64,F90) -> 0 | G13: =SUM(G30,G47,G64,G90) -> 0 | H13: =SUM(H30,H47,H64,H90) -> 0 | I13: 0 | J13: =SUM(J30,J47,J64,J90) -> 12500 | K13: =SUM(K30,K47,K64,K90) -> 0 | L13: =SUM(L30,L47,L64,L90) -> 0 | M13: 12500 | N13: =SUM(N30,N47,N64,N90) -> 0 | O13: =SUM(O30,O51,O64,O90) -> 0 | P13: =SUM(P30,P47,P64,P90) -> 0 | Q13: 0 | R13: =SUM(R30,R47,R64,R90) -> 4000 | S13: =SUM(S30,S47,S64,S90) -> 0 | T13: =SUM(T30,T47,T64,T90) -> 300 | U13: 4300 | V13: =SUM(V30,V47,V64,V90,B108,C108,I108,J108) -> 3276001 | W13: =SUM(W30,W47,W64,W90,D108,K108) -> 0 | X13: =SUM(X30,X47,X64,X90,E108,L108) -> 0 | Y13: 3276001
A14: 2025-09-22 | B14: =SUM(F14,J14,N14,R14,V14) -> 2238408 | C14: =SUM(G14,K14,O14,S14,W14) -> 0 | D14: =SUM(H14,L14,P14,T14,X14) -> 154450 | E14: =SUM(B14:D14) -> 2392858 | F14: =SUM(F31,F48,F65,F91) -> 0 | G14: =SUM(G31,G48,G65,G91) -> 0 | H14: =SUM(H31,H48,H65,H91) -> 0 | I14: 0 | J14: =SUM(J31,J48,J65,J91) -> 61320 | K14: =SUM(K31,K48,K65,K91) -> 0 | L14: =SUM(L31,L48,L65,L91) -> 0 | M14: 61320 | N14: =SUM(N31,N48,N65,N91) -> 60791 | O14: =SUM(O31,O52,O65,O91) -> 0 | P14: =SUM(P31,P48,P65,P91) -> 106000 | Q14: 166791 | R14: =SUM(R31,R48,R65,R91) -> 0 | S14: =SUM(S31,S48,S65,S91) -> 0 | T14: =SUM(T31,T48,T65,T91) -> 0 | U14: 0 | V14: =SUM(V31,V48,V65,V91,B109,C109,I109,J109) -> 2116297 | W14: =SUM(W31,W48,W65,W91,D109,K109) -> 0 | X14: =SUM(X31,X48,X65,X91,E109,L109) -> 48450 | Y14: 2164747
A15: 2025-10-22 | B15: =SUM(F15,J15,N15,R15,V15) -> 1572887 | C15: =SUM(G15,K15,O15,S15,W15) -> 232062 | D15: =SUM(H15,L15,P15,T15,X15) -> 82662 | E15: =SUM(B15:D15) -> 1887611 | F15: =SUM(F32,F49,F66,F92) -> 0 | G15: =SUM(G32,G49,G66,G92) -> 0 | H15: =SUM(H32,H49,H66,H92) -> 0 | I15: =SUM(F15:H15) -> 0 | J15: =SUM(J32,J49,J66,J92) -> 58734 | K15: =SUM(K32,K49,K66,K92) -> 228362 | L15: =SUM(L32,L49,L66,L92) -> 77462 | M15: =SUM(J15:L15) -> 364558 | N15: =SUM(N32,N49,N66,N92) -> 27000 | O15: =SUM(O32,O53,O66,O92) -> 0 | P15: =SUM(P32,P49,P66,P92) -> 0 | Q15: =SUM(N15:P15) -> 27000 | R15: =SUM(R32,R49,R66,R92) -> 4500 | S15: =SUM(S32,S49,S66,S92) -> 3700 | T15: =SUM(T32,T49,T66,T92) -> 200 | U15: =SUM(R15:T15) -> 8400 | V15: =SUM(V32,V49,V66,V92,B110,C110,I110,J110) -> 1482653 | W15: =SUM(W32,W49,W66,W92,D110,K110) -> 0 | X15: =SUM(X32,X49,X66,X92,E110,L110) -> 5000 | Y15: =SUM(V15:X15) -> 1487653
A16: 2025-11-22 | B16: =SUM(F16,J16,N16,R16,V16) -> 4158377 | C16: =SUM(G16,K16,O16,S16,W16) -> 11000 | D16: =SUM(H16,L16,P16,T16,X16) -> 7650 | E16: =SUM(B16:D16) -> 4177027 | F16: =SUM(F33,F50,F67,F93) -> 0 | G16: =SUM(G33,G50,G67,G93) -> 0 | H16: =SUM(H33,H50,H67,H93) -> 0 | I16: =SUM(F16:H16) -> 0 | J16: =SUM(J33,J50,J67,J93) -> 7510 | K16: =SUM(K33,K50,K67,K93) -> 0 | L16: =SUM(L33,L50,L67,L93) -> 0 | M16: =SUM(J16:L16) -> 7510 | N16: =SUM(N33,N50,N67,N93) -> 4000 | O16: =SUM(O33,O54,O67,O93) -> 0 | P16: =SUM(P33,P50,P67,P93) -> 0 | Q16: =SUM(N16:P16) -> 4000 | R16: =SUM(R33,R50,R67,R93) -> 7150 | S16: =SUM(S33,S50,S67,S93) -> 6000 | T16: =SUM(T33,T50,T67,T93) -> 650 | U16: =SUM(R16:T16) -> 13800 | V16: =SUM(V33,V50,V67,V93,B111,C111,I111,J111) -> 4139717 | W16: =SUM(W33,W50,W67,W93,D111,K111) -> 5000 | X16: =SUM(X33,X50,X67,X93,E111,L111) -> 7000 | Y16: =SUM(V16:X16) -> 4151717
A18: FT-D2 to FT-D2 Transfer Summary
A19: Total | F19: NW Alberta and NE BC | J19: NE Alberta | N19: Edmonton and Area | R19: SW Alberta | V19: SE Alberta
A20: Month | B20: Approved | C20: Denied | D20: Cancelled | E20: Total | F20: Approved | G20: Denied | H20: Cancelled | I20: Total | J20: Approved | K20: Denied | L20: Cancelled | M20: Total | N20: Approved | O20: Denied | P20: Cancelled | Q20: Total | R20: Approved | S20: Denied | T20: Cancelled | U20: Total | V20: Approved | W20: Denied | X20: Cancelled | Y20: Total
A21: 2024-11-22 | B21: =SUM(F21,J21,N21,R21,V21) -> 44150 | C21: =SUM(G21,K21,O21,S21,W21) -> 25 | D21: =SUM(H21,L21,P21,T21,X21) -> 0 | E21: =SUM(B21:D21) -> 44175 | F21: 0 | G21: 0 | H21: 0 | I21: =SUM(F21:H21) -> 0 | J21: 10000 | K21: 0 | L21: 0 | M21: =SUM(J21:L21) -> 10000 | N21: 6000 | O21: 25 | P21: 0 | Q21: =SUM(N21:P21) -> 6025 | R21: 0 | S21: 0 | T21: 0 | U21: =SUM(R21:T21) -> 0 | V21: 28150 | W21: 0 | X21: 0 | Y21: =SUM(V21:X21) -> 28150
A22: 2024-12-22 | B22: 47100 | C22: 0 | D22: 0 | E22: 47100 | F22: 0 | G22: 0 | H22: 0 | I22: 0 | J22: 12500 | K22: 0 | L22: 0 | M22: 12500 | N22: 9000 | O22: 0 | P22: 0 | Q22: 9000 | R22: 0 | S22: 0 | T22: 0 | U22: 0 | V22: 25600 | W22: 0 | X22: 0 | Y22: 25600
A23: 2025-01-22 | B23: 46740 | C23: 0 | D23: 0 | E23: 46740 | F23: 0 | G23: 0 | H23: 0 | I23: 0 | J23: 12500 | K23: 0 | L23: 0 | M23: 12500 | N23: 8000 | O23: 0 | P23: 0 | Q23: 8000 | R23: 0 | S23: 0 | T23: 0 | U23: 0 | V23: 26240 | W23: 0 | X23: 0 | Y23: 26240
A24: 2025-02-22 | B24: 38074 | C24: 0 | D24: 3000 | E24: 41074 | F24: 0 | G24: 0 | H24: 0 | I24: 0 | J24: 9500 | K24: 0 | L24: 3000 | M24: 12500 | N24: 7000 | O24: 0 | P24: 0 | Q24: 7000 | R24: 2774 | S24: 0 | T24: 0 | U24: 2774 | V24: 18800 | W24: 0 | X24: 0 | Y24: 18800
A25: 2025-03-22 | B25: 39740 | C25: 0 | D25: 0 | E25: 39740 | F25: 0 | G25: 0 | H25: 0 | I25: 0 | J25: 12500 | K25: 0 | L25: 0 | M25: 12500 | N25: 3000 | O25: 0 | P25: 0 | Q25: 3000 | R25: 0 | S25: 0 | T25: 0 | U25: 0 | V25: 24240 | W25: 0 | X25: 0 | Y25: 24240
A26: 2025-04-22 | B26: =SUM(F26,J26,N26,R26,V26) -> 54450 | C26: =SUM(G26,K26,O26,S26,W26) -> 0 | D26: =SUM(H26,L26,P26,T26,X26) -> 10900 | E26: =SUM(B26:D26) -> 65350 | F26: 0 | G26: 0 | H26: 0 | I26: =SUM(F26:H26) -> 0 | J26: 45000 | K26: 0 | L26: 0 | M26: =SUM(J26:L26) -> 45000 | N26: 4000 | O26: 0 | P26: 0 | Q26: =SUM(N26:P26) -> 4000 | R26: 0 | S26: 0 | T26: 0 | U26: =SUM(R26:T26) -> 0 | V26: 5450 | W26: 0 | X26: 10900 | Y26: =SUM(V26:X26) -> 16350
A27: 2025-05-22 | B27: 51550 | C27: 0 | D27: 0 | E27: 51550 | F27: 0 | G27: 0 | H27: 0 | I27: 0 | J27: 12500 | K27: 0 | L27: 0 | M27: 12500 | N27: 3000 | O27: 0 | P27: 0 | Q27: 3000 | R27: 2000 | S27: 0 | T27: 0 | U27: 2000 | V27: 34050 | W27: 0 | X27: 0 | Y27: 34050
A28: 2025-06-22 | B28: 276550 | C28: 0 | D28: 47200 | E28: 323750 | F28: 0 | G28: 0 | H28: 0 | I28: 0 | J28: 24000 | K28: 0 | L28: 30000 | M28: 54000 | N28: 196200 | O28: 0 | P28: 17200 | Q28: 213400 | R28: 0 | S28: 0 | T28: 0 | U28: 0 | V28: 56350 | W28: 0 | X28: 0 | Y28: 56350
A29: 2025-07-22 | B29: =SUM(F29,J29,N29,R29,V29) -> 73100 | C29: =SUM(G29,K29,O29,S29,W29) -> 0 | D29: =SUM(H29,L29,P29,T29,X29) -> 0 | E29: =SUM(B29:D29) -> 73100 | F29: 0 | G29: 0 | H29: 0 | I29: =SUM(F29:H29) -> 0 | J29: 7500 | K29: 0 | L29: 0 | M29: =SUM(J29:L29) -> 7500 | N29: 23000 | O29: 0 | P29: 0 | Q29: =SUM(N29:P29) -> 23000 | R29: 0 | S29: 0 | T29: 0 | U29: =SUM(R29:T29) -> 0 | V29: 42600 | W29: 0 | X29: 0 | Y29: =SUM(V29:X29) -> 42600
A30: 2025-08-22 | B30: =SUM(F30,J30,N30,R30,V30) -> 31200 | C30: =SUM(G30,K30,O30,S30,W30) -> 0 | D30: =SUM(H30,L30,P30,T30,X30) -> 0 | E30: =SUM(B30:D30) -> 31200 | F30: 0 | G30: 0 | H30: 0 | I30: =SUM(F30:H30) -> 0 | J30: 12500 | K30: 0 | L30: 0 | M30: =SUM(J30:L30) -> 12500 | N30: 0 | O30: 0 | P30: 0 | Q30: =SUM(N30:P30) -> 0 | R30: 0 | S30: 0 | T30: 0 | U30: =SUM(R30:T30) -> 0 | V30: 18700 | W30: 0 | X30: 0 | Y30: =SUM(V30:X30) -> 18700
A31: 2025-09-22 | B31: =SUM(F31,J31,N31,R31,V31) -> 197511 | C31: =SUM(G31,K31,O31,S31,W31) -> 0 | D31: =SUM(H31,L31,P31,T31,X31) -> 154450 | E31: =SUM(B31:D31) -> 351961 | F31: 0 | G31: 0 | H31: 0 | I31: =SUM(F31:H31) -> 0 | J31: 61320 | K31: 0 | L31: 0 | M31: =SUM(J31:L31) -> 61320 | N31: 60791 | O31: 0 | P31: 106000 | Q31: =SUM(N31:P31) -> 166791 | R31: 0 | S31: 0 | T31: 0 | U31: =SUM(R31:T31) -> 0 | V31: 75400 | W31: 0 | X31: 48450 | Y31: =SUM(V31:X31) -> 123850
A32: 2025-10-22 | B32: =SUM(F32,J32,N32,R32,V32) -> 108534 | C32: =SUM(G32,K32,O32,S32,W32) -> 228362 | D32: =SUM(H32,L32,P32,T32,X32) -> 82462 | E32: =SUM(B32:D32) -> 419358 | F32: 0 | G32: 0 | H32: 0 | I32: =SUM(F32:H32) -> 0 | J32: 58734 | K32: 228362 | L32: 77462 | M32: =SUM(J32:L32) -> 364558 | N32: 27000 | O32: 0 | P32: 0 | Q32: =SUM(N32:P32) -> 27000 | R32: 0 | S32: 0 | T32: 0 | U32: =SUM(R32:T32) -> 0 | V32: 22800 | W32: 0 | X32: 5000 | Y32: =SUM(V32:X32) -> 27800
A33: 2025-11-22 | B33: =SUM(F33,J33,N33,R33,V33) -> 44310 | C33: =SUM(G33,K33,O33,S33,W33) -> 5000 | D33: =SUM(H33,L33,P33,T33,X33) -> 7650 | E33: =SUM(B33:D33) -> 56960 | F33: 0 | G33: 0 | H33: 0 | I33: =SUM(F33:H33) -> 0 | J33: 7510 | K33: 0 | L33: 0 | M33: =SUM(J33:L33) -> 7510 | N33: 4000 | O33: 0 | P33: 0 | Q33: =SUM(N33:P33) -> 4000 | R33: 0 | S33: 0 | T33: 650 | U33: =SUM(R33:T33) -> 650 | V33: 32800 | W33: 5000 | X33: 7000 | Y33: =SUM(V33:X33) -> 44800
A35: FT-D3 to FT-D3 Transfer Summary
A36: Total | F36: NW Alberta and NE BC | J36: NE Alberta | N36: Edmonton and Area | R36: SW Alberta | V36: SE Alberta
A37: Month | B37: Approved | C37: Denied | D37: Cancelled | E37: Total | F37: Approved | G37: Denied | H37: Cancelled | I37: Total | J37: Approved | K37: Denied | L37: Cancelled | M37: Total | N37: Approved | O37: Denied | P37: Cancelled | Q37: Total | R37: Approved | S37: Denied | T37: Cancelled | U37: Total | V37: Approved | W37: Denied | X37: Cancelled | Y37: Total
A38: 2024-11-22 | B38: =SUM(F38,J38,N38,R38,V38) -> 0 | C38: =SUM(G38,K38,O38,S38,W38) -> 0 | D38: =SUM(H38,L38,P38,T38,X38) -> 0 | E38: =SUM(B38:D38) -> 0 | F38: 0 | G38: 0 | H38: 0 | I38: =SUM(F38:H38) -> 0 | J38: 0 | K38: 0 | L38: 0 | M38: =SUM(J38:L38) -> 0 | N38: 0 | O38: 0 | P38: 0 | Q38: =SUM(N38:P38) -> 0 | R38: 0 | S38: 0 | T38: 0 | U38: =SUM(R38:T38) -> 0 | V38: 0 | W38: 0 | X38: 0 | Y38: 0
A39: 2024-12-22 | B39: 0 | C39: 0 | D39: 0 | E39: 0 | F39: 0 | G39: 0 | H39: 0 | I39: 0 | J39: 0 | K39: 0 | L39: 0 | M39: 0 | N39: 0 | O39: 0 | P39: 0 | Q39: 0 | R39: 0 | S39: 0 | T39: 0 | U39: 0 | V39: 0 | W39: 0 | X39: 0 | Y39: 0
A40: 2025-01-22 | B40: 200 | C40: 0 | D40: 0 | E40: 200 | F40: 0 | G40: 0 | H40: 0 | I40: 0 | J40: 0 | K40: 0 | L40: 0 | M40: 0 | N40: 200 | O40: 0 | P40: 0 | Q40: 200 | R40: 0 | S40: 0 | T40: 0 | U40: 0 | V40: 0 | W40: 0 | X40: 0 | Y40: 0
A41: 2025-02-22 | B41: 0 | C41: 0 | D41: 0 | E41: 0 | F41: 0 | G41: 0 | H41: 0 | I41: 0 | J41: 0 | K41: 0 | L41: 0 | M41: 0 | N41: 0 | O41: 0 | P41: 0 | Q41: 0 | R41: 0 | S41: 0 | T41: 0 | U41: 0 | V41: 0 | W41: 0 | X41: 0 | Y41: 0
A42: 2025-03-22 | B42: 0 | C42: 0 | D42: 0 | E42: 0 | F42: 0 | G42: 0 | H42: 0 | I42: 0 | J42: 0 | K42: 0 | L42: 0 | M42: 0 | N42: 0 | O42: 0 | P42: 0 | Q42: 0 | R42: 0 | S42: 0 | T42: 0 | U42: 0 | V42: 0 | W42: 0 | X42: 0 | Y42: 0
A43: 2025-04-22 | B43: =SUM(F43,J43,N43,R43,V43) -> 0 | C43: =SUM(G43,K43,O43,S43,W43) -> 0 | D43: =SUM(H43,L43,P43,T43,X43) -> 0 | E43: =SUM(B43:D43) -> 0 | F43: 0 | G43: 0 | H43: 0 | I43: =SUM(F43:H43) -> 0 | J43: 0 | K43: 0 | L43: 0 | M43: =SUM(J43:L43) -> 0 | N43: 0 | O43: 0 | P43: 0 | Q43: =SUM(N43:P43) -> 0 | R43: 0 | S43: 0 | T43: 0 | U43: =SUM(R43:T43) -> 0 | V43: 0 | W43: 0 | X43: 0 | Y43: 0
A44: 2025-05-22 | B44: 0 | C44: 0 | D44: 0 | E44: 0 | F44: 0 | G44: 0 | H44: 0 | I44: 0 | J44: 0 | K44: 0 | L44: 0 | M44: 0 | N44: 0 | O44: 0 | P44: 0 | Q44: 0 | R44: 0 | S44: 0 | T44: 0 | U44: 0 | V44: 0 | W44: 0 | X44: 0 | Y44: 0
A45: 2025-06-22 | B45: 0 | C45: 0 | D45: 0 | E45: 0 | F45: 0 | G45: 0 | H45: 0 | I45: 0 | J45: 0 | K45: 0 | L45: 0 | M45: 0 | N45: 0 | O45: 0 | P45: 0 | Q45: 0 | R45: 0 | S45: 0 | T45: 0 | U45: 0 | V45: 0 | W45: 0 | X45: 0 | Y45: 0
A46: 2025-07-22 | B46: =SUM(F46,J46,N46,R46,V46) -> 0 | C46: =SUM(G46,K46,O46,S46,W46) -> 0 | D46: =SUM(H46,L46,P46,T46,X46) -> 0 | E46: =SUM(B46:D46) -> 0 | F46: 0 | G46: 0 | H46: 0 | I46: =SUM(F46:H46) -> 0 | J46: 0 | K46: 0 | L46: 0 | M46: =SUM(J46:L46) -> 0 | N46: 0 | O46: 0 | P46: 0 | Q46: =SUM(N46:P46) -> 0 | R46: 0 | S46: 0 | T46: 0 | U46: =SUM(R46:T46) -> 0 | V46: 0 | W46: 0 | X46: 0 | Y46: 0
A47: 2025-08-22 | B47: =SUM(F47,J47,N47,R47,V47) -> 0 | C47: =SUM(G47,K47,O47,S47,W47) -> 0 | D47: =SUM(H47,L47,P47,T47,X47) -> 0 | E47: =SUM(B47:D47) -> 0 | F47: 0 | G47: 0 | H47: 0 | I47: =SUM(F47:H47) -> 0 | J47: 0 | K47: 0 | L47: 0 | M47: =SUM(J47:L47) -> 0 | N47: 0 | O47: 0 | P47: 0 | Q47: =SUM(N47:P47) -> 0 | R47: 0 | S47: 0 | T47: 0 | U47: =SUM(R47:T47) -> 0 | V47: 0 | W47: 0 | X47: 0 | Y47: 0
A48: 2025-09-22 | B48: =SUM(F48,J48,N48,R48,V48) -> 0 | C48: =SUM(G48,K48,O48,S48,W48) -> 0 | D48: =SUM(H48,L48,P48,T48,X48) -> 0 | E48: =SUM(B48:D48) -> 0 | F48: 0 | G48: 0 | H48: 0 | I48: =SUM(F48:H48) -> 0 | J48: 0 | K48: 0 | L48: 0 | M48: =SUM(J48:L48) -> 0 | N48: 0 | O48: 0 | P48: 0 | Q48: =SUM(N48:P48) -> 0 | R48: 0 | S48: 0 | T48: 0 | U48: =SUM(R48:T48) -> 0 | V48: 0 | W48: 0 | X48: 0 | Y48: 0
A49: 2025-10-22 | B49: =SUM(F49,J49,N49,R49,V49) -> 0 | C49: =SUM(G49,K49,O49,S49,W49) -> 0 | D49: =SUM(H49,L49,P49,T49,X49) -> 0 | E49: =SUM(B49:D49) -> 0 | F49: 0 | G49: 0 | H49: 0 | I49: =SUM(F49:H49) -> 0 | J49: 0 | K49: 0 | L49: 0 | M49: =SUM(J49:L49) -> 0 | N49: 0 | O49: 0 | P49: 0 | Q49: =SUM(N49:P49) -> 0 | R49: 0 | S49: 0 | T49: 0 | U49: =SUM(R49:T49) -> 0 | V49: 0 | W49: 0 | X49: 0 | Y49: 0
A50: 2025-11-22 | B50: =SUM(F50,J50,N50,R50,V50) -> 0 | C50: =SUM(G50,K50,O50,S50,W50) -> 0 | D50: =SUM(H50,L50,P50,T50,X50) -> 0 | E50: =SUM(B50:D50) -> 0 | F50: 0 | G50: 0 | H50: 0 | I50: =SUM(F50:H50) -> 0 | J50: 0 | K50: 0 | L50: 0 | M50: =SUM(J50:L50) -> 0 | N50: 0 | O50: 0 | P50: 0 | Q50: =SUM(N50:P50) -> 0 | R50: 0 | S50: 0 | T50: 0 | U50: =SUM(R50:T50) -> 0 | V50: 0 | W50: 0 | X50: 0 | Y50: 0
A52: FT-D1 to FT-D2 Transfer Summary
A53: Total | F53: NW Alberta and NE BC | J53: NE Alberta | N53: Edmonton and Area | R53: SW Alberta | V53: SE Alberta
A54: Month | B54: Approved | C54: Denied | D54: Cancelled | E54: Total | F54: Approved | G54: Denied | H54: Cancelled | I54: Total | J54: Approved | K54: Denied | L54: Cancelled | M54: Total | N54: Approved | O54: Denied | P54: Cancelled | Q54: Total | R54: Approved | S54: Denied | T54: Cancelled | U54: Total | V54: Approved | W54: Denied | X54: Cancelled | Y54: Total
A55: 2024-11-22 | B55: =SUM(F55,J55,N55,R55,V55) -> 0 | C55: =SUM(G55,K55,O55,S55,W55) -> 0 | D55: =SUM(H55,L55,P55,T55,X55) -> 0 | E55: =SUM(I55,M55,Q55,U55,Y55) -> 0 | F55: 0 | G55: 0 | H55: 0 | I55: =SUM(F55:H55) -> 0 | J55: 0 | K55: 0 | L55: 0 | M55: =SUM(J55:L55) -> 0 | N55: 0 | O55: 0 | P55: 0 | Q55: =SUM(N55:P55) -> 0 | R55: 0 | S55: 0 | T55: 0 | U55: =SUM(R55:T55) -> 0 | V55: 0 | W55: 0 | X55: 0 | Y55: =SUM(V55:X55) -> 0
A56: 2024-12-22 | B56: 0 | C56: 0 | D56: 0 | E56: 0 | F56: 0 | G56: 0 | H56: 0 | I56: 0 | J56: 0 | K56: 0 | L56: 0 | M56: 0 | N56: 0 | O56: 0 | P56: 0 | Q56: 0 | R56: 0 | S56: 0 | T56: 0 | U56: 0 | V56: 0 | W56: 0 | X56: 0 | Y56: 0
A57: 2025-01-22 | B57: 0 | C57: 0 | D57: 0 | E57: 0 | F57: 0 | G57: 0 | H57: 0 | I57: 0 | J57: 0 | K57: 0 | L57: 0 | M57: 0 | N57: 0 | O57: 0 | P57: 0 | Q57: 0 | R57: 0 | S57: 0 | T57: 0 | U57: 0 | V57: 0 | W57: 0 | X57: 0 | Y57: 0
A58: 2025-02-22 | B58: 0 | C58: 0 | D58: 0 | E58: 0 | F58: 0 | G58: 0 | H58: 0 | I58: 0 | J58: 0 | K58: 0 | L58: 0 | M58: 0 | N58: 0 | O58: 0 | P58: 0 | Q58: 0 | R58: 0 | S58: 0 | T58: 0 | U58: 0 | V58: 0 | W58: 0 | X58: 0 | Y58: 0
A59: 2025-03-22 | B59: 0 | C59: 0 | D59: 0 | E59: 0 | F59: 0 | G59: 0 | H59: 0 | I59: 0 | J59: 0 | K59: 0 | L59: 0 | M59: 0 | N59: 0 | O59: 0 | P59: 0 | Q59: 0 | R59: 0 | S59: 0 | T59: 0 | U59: 0 | V59: 0 | W59: 0 | X59: 0 | Y59: 0
A60: 2025-04-22 | B60: =SUM(F60,J60,N60,R60,V60) -> 0 | C60: =SUM(G60,K60,O60,S60,W60) -> 0 | D60: =SUM(H60,L60,P60,T60,X60) -> 0 | E60: =SUM(I60,M60,Q60,U60,Y60) -> 0 | F60: 0 | G60: 0 | H60: 0 | I60: =SUM(F60:H60) -> 0 | J60: 0 | K60: 0 | L60: 0 | M60: =SUM(J60:L60) -> 0 | N60: 0 | O60: 0 | P60: 0 | Q60: =SUM(N60:P60) -> 0 | R60: 0 | S60: 0 | T60: 0 | U60: =SUM(R60:T60) -> 0 | V60: 0 | W60: 0 | X60: 0 | Y60: =SUM(V60:X60) -> 0
A61: 2025-05-22 | B61: 0 | C61: 0 | D61: 0 | E61: 0 | F61: 0 | G61: 0 | H61: 0 | I61: 0 | J61: 0 | K61: 0 | L61: 0 | M61: 0 | N61: 0 | O61: 0 | P61: 0 | Q61: 0 | R61: 0 | S61: 0 | T61: 0 | U61: 0 | V61: 0 | W61: 0 | X61: 0 | Y61: 0
A62: 2025-06-22 | B62: 241887 | C62: 0 | D62: 1086 | E62: 242973 | F62: 0 | G62: 0 | H62: 0 | I62: 0 | J62: 0 | K62: 0 | L62: 0 | M62: 0 | N62: 0 | O62: 0 | P62: 0 | Q62: 0 | R62: 0 | S62: 0 | T62: 0 | U62: 0 | V62: 241887 | W62: 0 | X62: 1086 | Y62: 242973
A63: 2025-07-22 | B63: =SUM(F63,J63,N63,R63,V63) -> 301663 | C63: =SUM(G63,K63,O63,S63,W63) -> 0 | D63: =SUM(H63,L63,P63,T63,X63) -> 0 | E63: =SUM(I63,M63,Q63,U63,Y63) -> 301663 | F63: 0 | G63: 0 | H63: 0 | I63: =SUM(F63:H63) -> 0 | J63: 0 | K63: 0 | L63: 0 | M63: =SUM(J63:L63) -> 0 | N63: 0 | O63: 0 | P63: 0 | Q63: =SUM(N63:P63) -> 0 | R63: 0 | S63: 0 | T63: 0 | U63: =SUM(R63:T63) -> 0 | V63: 301663 | W63: 0 | X63: 0 | Y63: =SUM(V63:X63) -> 301663
A64: 2025-08-22 | B64: =SUM(F64,J64,N64,R64,V64) -> 0 | C64: =SUM(G64,K64,O64,S64,W64) -> 0 | D64: =SUM(H64,L64,P64,T64,X64) -> 0 | E64: =SUM(I64,M64,Q64,U64,Y64) -> 0 | F64: 0 | G64: 0 | H64: 0 | I64: =SUM(F64:H64) -> 0 | J64: 0 | K64: 0 | L64: 0 | M64: =SUM(J64:L64) -> 0 | N64: 0 | O64: 0 | P64: 0 | Q64: =SUM(N64:P64) -> 0 | R64: 0 | S64: 0 | T64: 0 | U64: =SUM(R64:T64) -> 0 | V64: 0 | W64: 0 | X64: 0 | Y64: =SUM(V64:X64) -> 0
A65: 2025-09-22 | B65: =SUM(F65,J65,N65,R65,V65) -> 0 | C65: =SUM(G65,K65,O65,S65,W65) -> 0 | D65: =SUM(H65,L65,P65,T65,X65) -> 0 | E65: =SUM(I65,M65,Q65,U65,Y65) -> 0 | F65: 0 | G65: 0 | H65: 0 | I65: =SUM(F65:H65) -> 0 | J65: 0 | K65: 0 | L65: 0 | M65: =SUM(J65:L65) -> 0 | N65: 0 | O65: 0 | P65: 0 | Q65: =SUM(N65:P65) -> 0 | R65: 0 | S65: 0 | T65: 0 | U65: =SUM(R65:T65) -> 0 | V65: 0 | W65: 0 | X65: 0 | Y65: =SUM(V65:X65) -> 0
A66: 2025-10-22 | B66: =SUM(F66,J66,N66,R66,V66) -> 0 | C66: =SUM(G66,K66,O66,S66,W66) -> 0 | D66: =SUM(H66,L66,P66,T66,X66) -> 0 | E66: =SUM(I66,M66,Q66,U66,Y66) -> 0 | F66: 0 | G66: 0 | H66: 0 | I66: =SUM(F66:H66) -> 0 | J66: 0 | K66: 0 | L66: 0 | M66: =SUM(J66:L66) -> 0 | N66: 0 | O66: 0 | P66: 0 | Q66: =SUM(N66:P66) -> 0 | R66: 0 | S66: 0 | T66: 0 | U66: =SUM(R66:T66) -> 0 | V66: 0 | W66: 0 | X66: 0 | Y66: =SUM(V66:X66) -> 0
A67: 2025-11-22 | B67: =SUM(F67,J67,N67,R67,V67) -> 0 | C67: =SUM(G67,K67,O67,S67,W67) -> 0 | D67: =SUM(H67,L67,P67,T67,X67) -> 0 | E67: =SUM(I67,M67,Q67,U67,Y67) -> 0 | F67: 0 | G67: 0 | H67: 0 | I67: =SUM(F67:H67) -> 0 | J67: 0 | K67: 0 | L67: 0 | M67: =SUM(J67:L67) -> 0 | N67: 0 | O67: 0 | P67: 0 | Q67: =SUM(N67:P67) -> 0 | R67: 0 | S67: 0 | T67: 0 | U67: =SUM(R67:T67) -> 0 | V67: 0 | W67: 0 | X67: 0 | Y67: =SUM(V67:X67) -> 0
A78: FT-D2 to FT-D1 Transfer Summary
A79: Total | F79: NW Alberta and NE BC | J79: NE Alberta | N79: Edmonton and Area | R79: SW Alberta | V79: SE Alberta
A80: Month | B80: Approved | C80: Denied | D80: Cancelled | E80: Total | F80: Approved | G80: Denied | H80: Cancelled | I80: Total | J80: Approved | K80: Denied | L80: Cancelled | M80: Total | N80: Approved | O80: Denied | P80: Cancelled | Q80: Total | R80: Approved | S80: Denied | T80: Cancelled | U80: Total | V80: Approved | W80: Denied | X80: Cancelled | Y80: Total
A81: 2024-11-22 | B81: =SUM(F81,J81,N81,R81,V81) -> 45000 | C81: =SUM(G81,K81,O81,S81,W81) -> 0 | D81: =SUM(H81,L81,P81,T81,X81) -> 0 | E81: =SUM(B81:D81) -> 45000 | F81: 0 | G81: 0 | H81: 0 | I81: =SUM(F81:H81) -> 0 | J81: 0 | K81: 0 | L81: 0 | M81: =SUM(J81:L81) -> 0 | N81: 0 | O81: 0 | P81: 0 | Q81: =SUM(N81:P81) -> 0 | R81: 10000 | S81: 0 | T81: 0 | U81: =SUM(R81,S81,T81) -> 10000 | V81: 35000 | W81: 0 | X81: 0 | Y81: =SUM(V81,W81,X81) -> 35000
A82: 2024-12-22 | B82: 45000 | C82: 0 | D82: 0 | E82: 45000 | F82: 0 | G82: 0 | H82: 0 | I82: 0 | J82: 0 | K82: 0 | L82: 0 | M82: 0 | N82: 0 | O82: 0 | P82: 0 | Q82: 0 | R82: 10000 | S82: 0 | T82: 0 | U82: =SUM(R82,S82,T82) -> 10000 | V82: 35000 | W82: 0 | X82: 0 | Y82: =SUM(V82,W82,X82) -> 35000
A83: 2025-01-22 | B83: 45000 | C83: 0 | D83: 0 | E83: 45000 | F83: 0 | G83: 0 | H83: 0 | I83: 0 | J83: 0 | K83: 0 | L83: 0 | M83: 0 | N83: 0 | O83: 0 | P83: 0 | Q83: 0 | R83: 10000 | S83: 0 | T83: 0 | U83: =SUM(R83,S83,T83) -> 10000 | V83: 35000 | W83: 0 | X83: 0 | Y83: =SUM(V83,W83,X83) -> 35000
A84: 2025-02-22 | B84: 5400 | C84: =SUM(G84,K84,O84,S84,W84) -> 0 | D84: 0 | E84: 5400 | F84: 0 | G84: 0 | H84: 0 | I84: 0 | J84: 0 | K84: 0 | L84: 0 | M84: 0 | N84: 0 | O84: 0 | P84: 0 | Q84: 0 | R84: 5400 | S84: 0 | T84: 0 | U84: =SUM(R84:T84) -> 5400 | V84: 0 | W84: 0 | X84: 0 | Y84: =SUM(V84:X84) -> 0
A85: 2025-03-25 | B85: =SUM(F85,J85,N85,R85,V85) -> 17874 | C85: =SUM(G85,K85,O85,S85,W85) -> 0 | D85: =SUM(H85,L85,P85,T85,X85) -> 0 | E85: =SUM(B85:D85) -> 17874 | F85: 0 | G85: 0 | H85: 0 | I85: =SUM(F85:H85) -> 0 | J85: 0 | K85: 0 | L85: 0 | M85: =SUM(J85:L85) -> 0 | N85: 0 | O85: 0 | P85: 0 | Q85: =SUM(N85:P85) -> 0 | R85: 17874 | S85: 0 | T85: 0 | U85: =SUM(R85:T85) -> 17874 | V85: 0 | W85: 0 | X85: 0 | Y85: =SUM(V85:X85) -> 0
A86: 2025-04-22 | B86: =SUM(F86,J86,N86,R86,V86) -> 20500 | C86: =SUM(G86,K86,O86,S86,W86) -> 0 | D86: =SUM(H86,L86,P86,T86,X86) -> 0 | E86: =SUM(B86:D86) -> 20500 | F86: 0 | G86: 0 | H86: 0 | I86: =SUM(F86:H86) -> 0 | J86: 0 | K86: 0 | L86: 0 | M86: =SUM(J86:L86) -> 0 | N86: 0 | O86: 0 | P86: 0 | Q86: =SUM(N86:P86) -> 0 | R86: 20500 | S86: 0 | T86: 0 | U86: =SUM(R86:T86) -> 20500 | V86: 0 | W86: 0 | X86: 0 | Y86: 0
A87: 2025-05-22 | B87: =SUM(F87,J87,N87,R87,V87) -> 0 | C87: 0 | D87: =SUM(H87,L87,P87,T87,X87) -> 0 | E87: =SUM(B87:D87) -> 0 | F87: 0 | G87: 0 | H87: 0 | I87: 0 | J87: 0 | K87: 0 | L87: 0 | M87: 0 | N87: 0 | O87: 0 | P87: 0 | Q87: 0 | R87: 0 | S87: 0 | T87: 0 | U87: 0 | V87: 0 | W87: 0 | X87: 0 | Y87: 0
A88: 2025-06-22 | B88: 0 | C88: 0 | D88: 0 | E88: 0 | F88: 0 | G88: 0 | H88: 0 | I88: 0 | J88: 0 | K88: 0 | L88: 0 | M88: 0 | N88: 0 | O88: 0 | P88: 0 | Q88: 0 | R88: 0 | S88: 0 | T88: 0 | U88: 0 | V88: 0 | W88: 0 | X88: 0 | Y88: 0
A89: 2025-07-22 | B89: 0 | C89: 0 | D89: 0 | E89: 0 | F89: 0 | G89: 0 | H89: 0 | I89: =SUM(F89:H89) -> 0 | J89: 0 | K89: 0 | L89: 0 | M89: =SUM(J89:L89) -> 0 | N89: 0 | O89: 0 | P89: 0 | Q89: =SUM(N89:P89) -> 0 | R89: 0 | S89: 0 | T89: 0 | U89: 0 | V89: 0 | W89: 0 | X89: 0 | Y89: 0
A90: 2025-08-22 | B90: =SUM(F90,J90,N90,R90,V90) -> 4000 | C90: =SUM(G90,K90,O90,S90,W90) -> 0 | D90: =SUM(H90,L90,P90,T90,X90) -> 300 | E90: 4300 | F90: 0 | G90: 0 | H90: 0 | I90: =SUM(F90:H90) -> 0 | J90: 0 | K90: 0 | L90: 0 | M90: =SUM(J90:L90) -> 0 | N90: 0 | O90: 0 | P90: 0 | Q90: =SUM(N90:P90) -> 0 | R90: 4000 | S90: 0 | T90: 300 | U90: 4300 | V90: 0 | W90: 0 | X90: 0 | Y90: 0
A91: 2025-09-22 | B91: 0 | C91: =SUM(G91,K91,O91,S91,W91) -> 0 | D91: 0 | E91: 0 | F91: 0 | G91: 0 | H91: 0 | I91: =SUM(F91:H91) -> 0 | J91: 0 | K91: 0 | L91: 0 | M91: =SUM(J91:L91) -> 0 | N91: 0 | O91: 0 | P91: 0 | Q91: =SUM(N91:P91) -> 0 | R91: 0 | S91: 0 | T91: 0 | U91: 0 | V91: 0 | W91: 0 | X91: 0 | Y91: 0
A92: 2025-10-22 | B92: 0 | C92: =SUM(G92,K92,O92,S92,W92) -> 3700 | D92: 0 | E92: 3700 | F92: 0 | G92: 0 | H92: 0 | I92: =SUM(F92:H92) -> 0 | J92: 0 | K92: 0 | L92: 0 | M92: =SUM(J92:L92) -> 0 | N92: 0 | O92: 0 | P92: 0 | Q92: =SUM(N92:P92) -> 0 | R92: 4500 | S92: 3700 | T92: 200 | U92: 8400 | V92: 0 | W92: 0 | X92: 0 | Y92: 0
A93: 2025-11-22 | B93: 0 | C93: =SUM(G93,K93,O93,S93,W93) -> 6000 | D93: 0 | E93: =SUM(B93:D93) -> 6000 | F93: 0 | G93: 0 | H93: 0 | I93: =SUM(F93:H93) -> 0 | J93: 0 | K93: 0 | L93: 0 | M93: =SUM(J93:L93) -> 0 | N93: 0 | O93: 0 | P93: 0 | Q93: =SUM(N93:P93) -> 0 | R93: 7150 | S93: 6000 | T93: 0 | U93: =SUM(R93:T93) -> 13150 | V93: 0 | W93: 0 | X93: 0 | Y93: 0
A96: FT-D1 to FT-D1 Transfer Summary
A97: Empress to McNeill FT-D1 | H97: McNeill to Empress FT-D1
A98: Month | B98: Approved (Manual) | C98: Approved (ATP) | D98: Denied | E98: Cancelled | F98: Total | H98: Month | I98: Approved (Manual) | J98: Approved (ATP) | K98: Denied | L98: Cancelled | M98: Total
A99: 2024-11-22 | B99: 95576 | C99: 469356 | D99: 0 | E99: 0 | F99: =SUM(B99:E99) -> 564932 | H99: 2024-11-22 | I99: 167182 | J99: 549261 | K99: 0 | L99: 0 | M99: =SUM(I99:L99) -> 716443
A100: 2024-12-22 | B100: 143847 | C100: 17400 | D100: 0 | E100: 0 | F100: 161247 | H100: 2024-12-22 | I100: 549451 | J100: 859973 | K100: 0 | L100: 0 | M100: 1409424
A101: 2025-01-22 | B101: 62300 | C101: 562519 | D101: 0 | E101: 14489 | F101: 639308 | H101: 2025-01-22 | I101: 669188 | J101: 516391 | K101: 0 | L101: 0 | M101: 1185579
A102: 2025-02-22 | B102: 0 | C102: 1596721 | D102: 0 | E102: 14489 | F102: 1611210 | H102: 2025-02-22 | I102: 0 | J102: 274567 | K102: 0 | L102: 0 | M102: 274567
A103: 2025-03-22 | B103: 145000 | C103: 511894 | D103: 0 | E103: 0 | F103: =SUM(B103:E103) -> 656894 | H103: 2025-03-22 | I103: 169763 | J103: 619620 | K103: 0 | L103: 0 | M103: =SUM(I103:L103) -> 789383
A104: 2025-04-22 | B104: 0 | C104: 680248 | D104: 0 | E104: 0 | F104: 680248 | H104: 2025-04-22 | I104: 0 | J104: 646908 | K104: 0 | L104: 0 | M104: 646908
A105: 2025-05-22 | B105: 215856 | C105: 1961276 | D105: 0 | E105: 0 | F105: 2177132 | H105: 2025-05-22 | I105: 17378 | J105: 1019670 | K105: 0 | L105: 0 | M105: 1037048
A106: 2025-06-22 | B106: 574303 | C106: 3040706 | D106: 0 | E106: 93777 | F106: 3708786 | H106: 2025-06-22 | I106: 1446284 | J106: 1814581 | K106: 0 | L106: 0 | M106: 3260865
A107: 2025-07-22 | B107: 443085 | C107: 1913835 | D107: 0 | E107: 61390 | F107: =SUM(B107:E107) -> 2418310 | H107: 2025-07-22 | I107: 1624565 | J107: 1144893 | K107: 0 | L107: 0 | M107: =SUM(I107:L107) -> 2769458
A108: 2025-08-22 | B108: 0 | C108: 2724891 | D108: 0 | E108: 0 | F108: =SUM(B108:E108) -> 2724891 | H108: 2025-08-22 | I108: 0 | J108: 532410 | K108: 0 | L108: 0 | M108: =SUM(I108:L108) -> 532410
A109: 2025-09-22 | B109: 0 | C109: 1393422 | D109: 0 | E109: 0 | F109: =SUM(B109:E109) -> 1393422 | H109: 2025-09-22 | I109: 572577 | J109: 74898 | K109: 0 | L109: 0 | M109: =SUM(I109:L109) -> 647475
A110: 2025-10-22 | B110: 30502 | C110: 831911 | D110: 0 | E110: 0 | F110: =SUM(B110:E110) -> 862413 | H110: 2025-10-22 | I110: 356055 | J110: 241385 | K110: 0 | L110: 0 | M110: =SUM(I110:L110) -> 597440
A111: 2025-11-22 | B111: 53071 | C111: 1009530 | D111: 0 | E111: 0 | F111: =SUM(B111:E111) -> 1062601 | H111: 2025-11-22 | I111: 606018 | J111: 2438298 | K111: 0 | L111: 0 | M111: =SUM(I111:L111) -> 3044316
A114: Cross Boundary Transfers
A115: Month | B115: Volume (GJ/d) | D115: Information
A116: 2024-11-01 | B116: N/A | D116: N/A
A117: 2024-12-01 | B117: N/A | D117: N/A
A118: 2025-01-01 | B118: N/A | D118: N/A
A119: 2025-02-01 | B119: N/A | D119: N/A
A120: 2025-03-01 | B120: N/A | D120: N/A
A121: 2025-04-01 | B121: N/A | D121: N/A
A122: 2025-05-01 | B122: N/A | D122: N/A
A123: 2025-06-01 | B123: N/A | D123: N/A
A124: 2025-07-01 | B124: N/A | D124: N/A
A125: 2025-08-01 | B125: N/A | D125: N/A
A126: 2025-09-01 | B126: N/A | D126: N/A
A127: 2025-10-01 | B127: N/A | D127: N/A
A128: 2025-11-01 | B128: N/A | D128: N/A
A131: Notes:
A132: 1. Values represent the total volume (GJ/d) of transfer requests processed in the specified month, regardless of effective date
A133: 2. Includes all "out and back" and "one-way" transfers
A134: 3. Out and back transfer requests are tallied as a single transaction
A135: 4. Transfers to storage are not included in totals
A136: 5. Transfers that cross a Delivery Design Area boundary are tallied in the area where the "To" location is situated
A137: 6. Cancelled transfer requests are initiated by the requester (customer, marketer etc.)
A138: 7. ATP is the acronym for Automated Transfer Process, requests that meet certain criteria may be approved automatically
A139: 8. Delivery Design Area boundaries are illustrated in the Design Methodology document on Customer Express (see NGTL/Regulatory/Facilities)
A140: http://www.tccustomerexpress.com/docs/ab_regulatory_facilities/Facilities%20Design%20Methodology%20Document%20-%20Revision%20May%2031,%202018_Oct%204.pdf

Sheet Transfers to Storage
A1: Transfers to Storage - Frequency
B2: FT-R | G2: FT-D1 | L2: FT-D2
A3: Month | B3: Approved (Manual) | C3: Approved (ATP) | D3: Denied | E3: Cancelled | F3: Total | G3: Approved (Manual) | H3: Approved (ATP) | I3: Denied | J3: Cancelled | K3: Total | L3: Approved (Manual) | M3: Approved (ATP) | N3: Denied | O3: Cancelled | P3: Total
A4: 2024-11-22 | B4: 0 | C4: 4 | D4: 0 | E4: 0 | F4: =SUM(B4:E4) -> 4 | G4: 0 | H4: 0 | I4: 0 | J4: 0 | K4: =SUM(G4:J4) -> 0 | L4: 0 | M4: 0 | N4: 0 | O4: 0 | P4: =SUM(L4:O4) -> 0
A5: 2024-12-22 | B5: 0 | C5: 0 | D5: 0 | E5: 0 | F5: 0 | G5: 0 | H5: 0 | I5: 0 | J5: 0 | K5: 0 | L5: 0 | M5: 0 | N5: 0 | O5: 0 | P5: 0
A6: 2025-01-22 | B6: 0 | C6: 25 | D6: 0 | E6: 5 | F6: 30 | G6: 0 | H6: 0 | I6: 0 | J6: 0 | K6: 0 | L6: 0 | M6: 0 | N6: 0 | O6: 0 | P6: 0
A7: 2025-02-22 | B7: 0 | C7: 17 | D7: 0 | E7: 0 | F7: 17 | G7: 0 | H7: 0 | I7: 0 | J7: 0 | K7: 0 | L7: 0 | M7: 0 | N7: 0 | O7: 0 | P7: 0
A8: 2025-03-22 | B8: 0 | C8: 2 | D8: 0 | E8: 0 | F8: 2 | G8: 0 | H8: 0 | I8: 0 | J8: 0 | K8: 0 | L8: 0 | M8: 0 | N8: 0 | O8: 0 | P8: 0
A9: 2025-04-22 | B9: 0 | C9: 0 | D9: 0 | E9: 0 | F9: =SUM(B9:E9) -> 0 | G9: 0 | H9: 0 | I9: 0 | J9: 0 | K9: =SUM(G9:J9) -> 0 | L9: 1 | M9: 0 | N9: 0 | O9: 0 | P9: =SUM(L9:O9) -> 1
A10: 2025-05-22 | B10: 0 | C10: 0 | D10: 0 | E10: 0 | F10: 0 | G10: 0 | H10: 2 | I10: 0 | J10: 0 | K10: 2 | L10: 6 | M10: 0 | N10: 0 | O10: 0 | P10: 6
A11: 2025-06-22 | B11: 0 | C11: 0 | D11: 0 | E11: 0 | F11: 0 | G11: 0 | H11: 74 | I11: 0 | J11: 0 | K11: 74 | L11: 32 | M11: 0 | N11: 0 | O11: 4 | P11: 36
A12: 2025-07-22 | B12: 0 | C12: 0 | D12: 0 | E12: 0 | F12: =SUM(B12:E12) -> 0 | G12: 1 | H12: 64 | I12: 0 | J12: 0 | K12: =SUM(G12:J12) -> 65 | L12: 19 | M12: 0 | N12: 0 | O12: 0 | P12: =SUM(L12:O12) -> 19
A13: 2025-08-22 | B13: 0 | C13: 0 | D13: 0 | E13: 0 | F13: =SUM(B13:E13) -> 0 | G13: 0 | H13: 0 | I13: 0 | J13: 0 | K13: =SUM(G13:J13) -> 0 | L13: 1 | M13: 0 | N13: 0 | O13: 0 | P13: =SUM(L13:O13) -> 1
A14: 2025-09-22 | B14: 0 | C14: 0 | D14: 0 | E14: 0 | F14: =SUM(B14:E14) -> 0 | G14: 0 | H14: 0 | I14: 0 | J14: 0 | K14: =SUM(G14:J14) -> 0 | L14: 1 | M14: 0 | N14: 0 | O14: 0 | P14: =SUM(L14:O14) -> 1
A15: 2025-10-22 | B15: 0 | C15: 0 | D15: 0 | E15: 0 | F15: =SUM(B15:E15) -> 0 | G15: 0 | H15: 0 | I15: 0 | J15: 0 | K15: =SUM(G15:J15) -> 0 | L15: 1 | M15: 0 | N15: 0 | O15: 0 | P15: =SUM(L15:O15) -> 1
A16: 2025-11-22 | B16: 0 | C16: 0 | D16: 0 | E16: 0 | F16: =SUM(B16:E16) -> 0 | G16: 0 | H16: 0 | I16: 0 | J16: 0 | K16: =SUM(G16:J16) -> 0 | L16: 7 | M16: 0 | N16: 0 | O16: 0 | P16: =SUM(L16:O16) -> 7
A18: Transfers to Storage - Volume
B19: FT-R (103m3/d) | G19: FT-D1 (GJ/d) | L19: FT-D2 (GJ/d)
A20: Month | B20: Approved (Manual) | C20: Approved (ATP) | D20: Denied | E20: Cancelled | F20: Total | G20: Approved (Manual) | H20: Approved (ATP) | I20: Denied | J20: Cancelled | K20: Total | L20: Approved (Manual) | M20: Approved (ATP) | N20: Denied | O20: Cancelled | P20: Total
A21: 2024-11-22 | B21: 0 | C21: 1055 | D21: 0 | E21: 0 | F21: =SUM(B21:E21) -> 1055 | G21: 0 | H21: 0 | I21: 0 | J21: 0 | K21: =SUM(G21:J21) -> 0 | L21: 0 | M21: 0 | N21: 0 | O21: 0 | P21: =SUM(L21:O21) -> 0
A22: 2024-12-22 | B22: 0 | C22: 0 | D22: 0 | E22: 0 | F22: 0 | G22: 0 | H22: 0 | I22: 0 | J22: 0 | K22: 0 | L22: 0 | M22: 0 | N22: 0 | O22: 0 | P22: 0
A23: 2025-01-22 | B23: 0 | C23: 11893 | D23: 0 | E23: 631 | F23: 12524 | G23: 0 | H23: 0 | I23: 0 | J23: 0 | K23: 0 | L23: 0 | M23: 0 | N23: 0 | O23: 0 | P23: 0
A24: 2025-02-22 | B24: 0 | C24: 6318 | D24: 0 | E24: 0 | F24: 6318 | G24: 0 | H24: 0 | I24: 0 | J24: 0 | K24: 0 | L24: 0 | M24: 0 | N24: 0 | O24: 0 | P24: 0
A25: 2025-03-22 | B25: 0 | C25: 247 | D25: 0 | E25: 0 | F25: 247 | G25: 0 | H25: 0 | I25: 0 | J25: 0 | K25: 0 | L25: 16000 | M25: 0 | N25: 0 | O25: 0 | P25: 16000
A26: 2025-04-22 | B26: 0 | C26: 0 | D26: 0 | E26: 0 | F26: =SUM(B26:E26) -> 0 | G26: 0 | H26: 0 | I26: 0 | J26: 0 | K26: 0 | L26: 1000 | M26: 0 | N26: 0 | O26: 0 | P26: =SUM(L26:O26) -> 1000
A27: 2025-05-22 | B27: 0 | C27: 0 | D27: 0 | E27: 0 | F27: =SUM(B27:E27) -> 0 | G27: 0 | H27: 37500 | I27: 0 | J27: 0 | K27: 37500 | L27: 34500 | M27: 0 | N27: 0 | O27: 0 | P27: =SUM(L27:O27) -> 34500
A28: 2025-06-22 | B28: 0 | C28: 0 | D28: 0 | E28: 0 | F28: 0 | G28: 0 | H28: 1339655 | I28: 0 | J28: 0 | K28: 1339655 | L28: 163750 | M28: 0 | N28: 0 | O28: 39020 | P28: 202770
A29: 2025-07-22 | B29: 0 | C29: 0 | D29: 0 | E29: 0 | G29: 144000 | H29: 1175874 | I29: 0 | J29: 0 | K29: =SUM(G29:J29) -> 1319874 | L29: 104400 | M29: 0 | N29: 0 | O29: 0 | P29: =SUM(L29:O29) -> 104400
A30: 2025-08-22 | B30: 0 | C30: 0 | D30: 0 | E30: 0 | G30: 0 | H30: 0 | I30: 0 | J30: 0 | K30: =SUM(G30:J30) -> 0 | L30: 1000 | M30: 0 | N30: 0 | O30: 0 | P30: =SUM(L30:O30) -> 1000
A31: 2025-09-22 | B31: 0 | C31: 0 | D31: 0 | E31: 0 | G31: 0 | H31: 0 | I31: 0 | J31: 0 | K31: =SUM(G31:J31) -> 0 | L31: 1000 | M31: 0 | N31: 0 | O31: 0 | P31: =SUM(L31:O31) -> 1000
A32: 2025-10-22 | B32: 0 | C32: 0 | D32: 0 | E32: 0 | G32: 0 | H32: 0 | I32: 0 | J32: 0 | K32: =SUM(G32:J32) -> 0 | L32: 8125 | M32: 0 | N32: 0 | O32: 0 | P32: =SUM(L32:O32) -> 8125
A33: 2025-11-22 | B33: 0 | C33: 0 | D33: 0 | E33: 0 | G33: 0 | H33: 0 | I33: 0 | J33: 0 | K33: =SUM(G33:J33) -> 0 | L33: 33000 | M33: 0 | N33: 0 | O33: 0 | P33: =SUM(L33:O33) -> 33000
A37: Cross Boundary Transfers
A38: Month | B38: Frequency | C38: Volume (e3m3/d) | D38: Information
A39: 2024-11-01 | B39: N/A | C39: N/A | D39: N/A
A40: 2024-12-01 | B40: N/A | C40: N/A | D40: N/A
A41: 2025-01-01 | B41: N/A | C41: N/A | D41: N/A
A42: 2025-02-01 | B42: N/A | C42: N/A | D42: N/A
A43: 2025-03-01 | B43: N/A | C43: N/A | D43: N/A
A44: 2025-04-01 | B44: N/A | C44: N/A | D44: N/A
A45: 2025-05-01 | B45: N/A | C45: N/A | D45: N/A
A46: 2025-06-01 | B46: N/A | C46: N/A | D46: N/A
A47: 2025-07-01 | B47: N/A | C47: N/A | D47: N/A
A48: 2025-08-01 | B48: N/A | C48: N/A | D48: N/A
A49: 2025-09-01 | B49: N/A | C49: N/A | D49: N/A
A50: 2025-10-01 | B50: N/A | C50: N/A | D50: N/A
A51: 2025-11-01 | B51: N/A | C51: N/A | D51: N/A
A54: Notes:
A55: 1. Values represent the total volume (GJ/d) of transfer requests processed in the specified month, regardless of effective date
A56: 2. Includes all "out and back" and "one-way" transfers
A57: 3. Out and back transfer requests are tallied as a single transaction
A58: 4. Transfers that cross a Delivery Design Area boundary are tallied in the area where the "To" location is situated
A59: 5. Cancelled transfer requests are initiated by the requester (customer, marketer etc.)
A60: 6. ATP is the acronym for Automated Transfer Process, requests that meet certain criteria may be approved automatically
A61: 7. Delivery Design Area boundaries are illustrated in the Design Methodology document on Customer Express (see NGTL/Regulatory/Facilities)
A62: http://www.tccustomerexpress.com/docs/ab_regulatory_facilities/Facilities%20Design%20Methodology%20Document%20-%20Revision%20May%2031,%202018_Oct%204.pdf
P73: 6
